DepartmentFamily,Entity,Date,ExpenseType,ExpenseArea,Supplier,TransactionNumber,Amount,VATRegistrationNo
BIS,The Insolvency Service,07/03/2014,Accommodation,ESTATES,A10 LIMITED,BA0000272859,"31,063.50",879668242
BIS,The Insolvency Service,24/03/2014,Postage,OFFICIAL RECEIVER SERVICES                                                                          ,ABACUS EXPRESS,BA0000273445,14.51,417924146
BIS,The Insolvency Service,24/03/2014,Postage,OFFICIAL RECEIVER SERVICES                                                                          ,ABACUS EXPRESS,BA0000273473,18.81,417924146
BIS,The Insolvency Service,24/03/2014,Postage,OFFICIAL RECEIVER SERVICES                                                                          ,ABACUS EXPRESS,BA0000273474,14.51,417924146
BIS,The Insolvency Service,26/03/2014,Postage,INVESTIGATION & ENFORCEMENT SERVICES                                                                ,ABACUS EXPRESS,BA0000273640,14.51,417924146
BIS,The Insolvency Service,11/03/2014,Computer and IT Systems,INFORMATION TECHNOLOGY                                                                              ,Advantage Resourcing UK Limited.                            ,BA0000272972,"5,812.64",394626223
BIS,The Insolvency Service,11/03/2014,Computer and IT Systems,INFORMATION TECHNOLOGY                                                                              ,Advantage Resourcing UK Limited.                            ,BA0000272973,"6,216.72",394626223
BIS,The Insolvency Service,11/03/2014,Computer and IT Systems,INFORMATION TECHNOLOGY                                                                              ,Advantage Resourcing UK Limited.                            ,BA0000272974,"5,895.24",394626223
BIS,The Insolvency Service,11/03/2014,Computer and IT Systems,INFORMATION TECHNOLOGY                                                                              ,Advantage Resourcing UK Limited.                            ,BA0000272975,"3,746.42",394626223
BIS,The Insolvency Service,26/03/2014,Computer and IT Systems,INFORMATION TECHNOLOGY                                                                              ,Advantage Resourcing UK Limited.                            ,BA0000273648,"12,503.69",394626223
BIS,The Insolvency Service,11/03/2014,Agency Workers,FINANCE AND COMMERCIAL,ALLEN LANE LIMITED,BA0000272970,"1,418.08",
BIS,The Insolvency Service,11/03/2014,Agency Workers,FINANCE AND COMMERCIAL,ALLEN LANE LIMITED,BA0000272971,"3,311.16",
BIS,The Insolvency Service,13/03/2014,Agency Workers,FINANCE AND COMMERCIAL,ALLEN LANE LIMITED,BA0000273073,"3,879.10",
BIS,The Insolvency Service,13/03/2014,Agency Workers,FINANCE AND COMMERCIAL,ALLEN LANE LIMITED,BA0000273079,"4,310.10",
BIS,The Insolvency Service,13/03/2014,Agency Workers,FINANCE AND COMMERCIAL,ALLEN LANE LIMITED,BA0000273080,"2,363.46",
BIS,The Insolvency Service,20/03/2014,Agency Workers,FINANCE AND COMMERCIAL,ALLEN LANE LIMITED,BA0000273344,"2,363.46",
BIS,The Insolvency Service,20/03/2014,Agency Workers,FINANCE AND COMMERCIAL,ALLEN LANE LIMITED,BA0000273347,"3,879.10",
BIS,The Insolvency Service,20/03/2014,Agency Workers,"PLANNING, PERFORMANCE & PROJECTS                                                                    ",ALLEN LANE LIMITED,BA0000273346,"5,199.61",
BIS,The Insolvency Service,24/03/2014,Agency Workers,FINANCE AND COMMERCIAL,ALLEN LANE LIMITED,BA0000273502,"3,448.08",
BIS,The Insolvency Service,24/03/2014,Agency Workers,"PLANNING, PERFORMANCE & PROJECTS                                                                    ",ALLEN LANE LIMITED,BA0000273501,"4,726.92",
BIS,The Insolvency Service,27/03/2014,Agency Workers,FINANCE AND COMMERCIAL,ALLEN LANE LIMITED,BA0000273702,"6,972.20",
BIS,The Insolvency Service,28/03/2014,Agency Workers,FINANCE AND COMMERCIAL,ALLEN LANE LIMITED,BA0000273737,"2,980.04",
BIS,The Insolvency Service,28/03/2014,Agency Workers,FINANCE AND COMMERCIAL,ALLEN LANE LIMITED,BA0000273743,"3,311.16",
BIS,The Insolvency Service,28/03/2014,Agency Workers,FINANCE AND COMMERCIAL,ALLEN LANE LIMITED,BA0000273763,"3,017.08",
BIS,The Insolvency Service,31/03/2014,Agency Workers,FINANCE AND COMMERCIAL,ALLEN LANE LIMITED,BA0000273848,"5,351.04",
BIS,The Insolvency Service,31/03/2014,Agency Workers,FINANCE AND COMMERCIAL,ALLEN LANE LIMITED,BA0000273861,"2,363.46",
BIS,The Insolvency Service,31/03/2014,Agency Workers,FINANCE AND COMMERCIAL,ALLEN LANE LIMITED,BA0000273858,"2,648.93",
BIS,The Insolvency Service,01/03/2014,Telecoms,"PLANNING, PERFORMANCE & PROJECTS                                                                    ",AMAZON.CO.UK LTD,BA0000273613,56.49,727255821
BIS,The Insolvency Service,01/03/2014,Office Machinery,FINANCE AND COMMERCIAL,AMAZON.CO.UK LTD,BA0000273613,77.99,727255821
BIS,The Insolvency Service,01/03/2014,Employee Related Costs,PEOPLE & CAPABILITY                                                                                 ,AMAZON.CO.UK LTD,BA0000273613,26.00,727255821
BIS,The Insolvency Service,01/03/2014,Office Supplies and Services,INVESTIGATION & ENFORCEMENT SERVICES                                                                ,AMAZON.CO.UK LTD,BA0000273613,38.92,727255821
BIS,The Insolvency Service,01/03/2014,Office Supplies and Services,FINANCE AND COMMERCIAL                                                                              ,AMAZON.CO.UK LTD,BA0000273613,55.19,727255821
BIS,The Insolvency Service,01/03/2014,Office Supplies and Services,FINANCE AND COMMERCIAL                                                                              ,AMAZON.CO.UK LTD,BA0000273613,110.00,727255821
BIS,The Insolvency Service,01/03/2014,Office Supplies and Services,INVESTIGATION & ENFORCEMENT SERVICES                                                                ,AMAZON.CO.UK LTD,BA0000273613,38.93,727255821
BIS,The Insolvency Service,01/03/2014,Office Supplies and Services,INFORMATION TECHNOLOGY                                                                              ,AMAZON.CO.UK LTD,BA0000273613,13.28,727255821
BIS,The Insolvency Service,01/03/2014,Office Supplies and Services,INVESTIGATION & ENFORCEMENT SERVICES                                                                ,AMAZON.CO.UK LTD,BA0000273613,16.90,727255821
BIS,The Insolvency Service,01/03/2014,Office Supplies and Services,FINANCE AND COMMERCIAL                                                                              ,AMAZON.CO.UK LTD,BA0000273613,8.39,727255821
BIS,The Insolvency Service,01/03/2014,Office Supplies and Services,"PLANNING, PERFORMANCE & PROJECTS                                                                    ",AMAZON.CO.UK LTD,BA0000273613,20.02,727255821
BIS,The Insolvency Service,01/03/2014,Office Supplies and Services,FINANCE AND COMMERCIAL                                                                              ,AMAZON.CO.UK LTD,BA0000273613,47.99,727255821
BIS,The Insolvency Service,01/03/2014,Office Supplies and Services,FINANCE AND COMMERCIAL                                                                              ,AMAZON.CO.UK LTD,BA0000273613,86.99,727255821
BIS,The Insolvency Service,01/03/2014,Office Supplies and Services,FINANCE AND COMMERCIAL                                                                              ,AMAZON.CO.UK LTD,BA0000273613,747.76,727255821
BIS,The Insolvency Service,01/03/2014,Office Supplies and Services,FINANCE AND COMMERCIAL                                                                              ,AMAZON.CO.UK LTD,BA0000273613,7.99,727255821
BIS,The Insolvency Service,01/03/2014,Office Supplies and Services,FINANCE AND COMMERCIAL                                                                              ,AMAZON.CO.UK LTD,BA0000273613,169.70,727255821
BIS,The Insolvency Service,01/03/2014,Office Supplies and Services,FINANCE AND COMMERCIAL                                                                              ,AMAZON.CO.UK LTD,BA0000273613,405.23,727255821
BIS,The Insolvency Service,01/03/2014,Office Supplies and Services,INVESTIGATION & ENFORCEMENT SERVICES                                                                ,AMAZON.CO.UK LTD,BA0000273613,60.65,727255821
BIS,The Insolvency Service,01/03/2014,Office Supplies and Services,INVESTIGATION & ENFORCEMENT SERVICES                                                                ,AMAZON.CO.UK LTD,BA0000273613,60.65,727255821
BIS,The Insolvency Service,01/03/2014,Office Supplies and Services,FACILITIES                                                                                          ,AMMERHURST LTD ,BA0000273613,77.50,231097780
BIS,The Insolvency Service,11/03/2014,Insolvency Case Related Costs,OFFICIAL RECEIVER SERVICES                                                                          ,ANGLO EUROPEAN PRIVATE DETECTIVES,BA0000272916,876.00,451474257
BIS,The Insolvency Service,11/03/2014,Investigation and Enforcement Costs,INVESTIGATION & ENFORCEMENT SERVICES                                                                ,ANGLO EUROPEAN PRIVATE DETECTIVES,BA0000272916,"1,746.00",451474257
BIS,The Insolvency Service,11/03/2014,Investigation and Enforcement Costs,OFFICIAL RECEIVER SERVICES                                                                          ,ANGLO EUROPEAN PRIVATE DETECTIVES,BA0000272916,480.00,451474257
BIS,The Insolvency Service,14/03/2014,Investigation and Enforcement Costs,INVESTIGATION & ENFORCEMENT SERVICES                                                                ,APL ACCOUNTANTS LLP,BA0000273142,286.65,854660115
BIS,The Insolvency Service,14/03/2014,Investigation and Enforcement Costs,INVESTIGATION & ENFORCEMENT SERVICES                                                                ,APL ACCOUNTANTS LLP,BA0000273142,"3,800.00",854660115
BIS,The Insolvency Service,14/03/2014,Investigation and Enforcement Costs,INVESTIGATION & ENFORCEMENT SERVICES                                                                ,APL ACCOUNTANTS LLP,BA0000273133,641.25,854660115
BIS,The Insolvency Service,14/03/2014,Investigation and Enforcement Costs,INVESTIGATION & ENFORCEMENT SERVICES                                                                ,APL ACCOUNTANTS LLP,BA0000273143,"1,235.00",854660115
BIS,The Insolvency Service,14/03/2014,Investigation and Enforcement Costs,INVESTIGATION & ENFORCEMENT SERVICES                                                                ,APL ACCOUNTANTS LLP,BA0000273144,470.47,854660115
BIS,The Insolvency Service,14/03/2014,Investigation and Enforcement Costs,INVESTIGATION & ENFORCEMENT SERVICES                                                                ,APL ACCOUNTANTS LLP,BA0000273144,"4,512.50",854660115
BIS,The Insolvency Service,14/03/2014,Investigation and Enforcement Costs,INVESTIGATION & ENFORCEMENT SERVICES                                                                ,APL ACCOUNTANTS LLP,BA0000273145,125.07,854660115
BIS,The Insolvency Service,14/03/2014,Investigation and Enforcement Costs,INVESTIGATION & ENFORCEMENT SERVICES                                                                ,APL ACCOUNTANTS LLP,BA0000273145,"1,211.25",854660115
BIS,The Insolvency Service,28/03/2014,Investigation and Enforcement Costs,INVESTIGATION & ENFORCEMENT SERVICES                                                                ,APL ACCOUNTANTS LLP,BA0000273741,143.98,854660115
BIS,The Insolvency Service,28/03/2014,Investigation and Enforcement Costs,INVESTIGATION & ENFORCEMENT SERVICES                                                                ,APL ACCOUNTANTS LLP,BA0000273741,"1,971.25",854660115
BIS,The Insolvency Service,28/03/2014,Investigation and Enforcement Costs,INVESTIGATION & ENFORCEMENT SERVICES                                                                ,APL ACCOUNTANTS LLP,BA0000273772,143.98,854660115
BIS,The Insolvency Service,28/03/2014,Investigation and Enforcement Costs,INVESTIGATION & ENFORCEMENT SERVICES                                                                ,APL ACCOUNTANTS LLP,BA0000273772,"2,446.25",854660115
BIS,The Insolvency Service,28/03/2014,Investigation and Enforcement Costs,INVESTIGATION & ENFORCEMENT SERVICES                                                                ,APL ACCOUNTANTS LLP,BA0000273742,217.57,854660115
BIS,The Insolvency Service,28/03/2014,Investigation and Enforcement Costs,INVESTIGATION & ENFORCEMENT SERVICES                                                                ,APL ACCOUNTANTS LLP,BA0000273742,"2,042.50",854660115
BIS,The Insolvency Service,20/03/2014,Accommodation,BUSINESS SERVICES DIRECTORATE                                                                       ,ARCHIVE 2000 UK LTD,BA0000273353,"1,398.84",425421969
BIS,The Insolvency Service,24/03/2014,Postage,INFORMATION TECHNOLOGY                                                                              ,ARCHIVE ACUMEN                                              ,BA0000273400,30.00,175114815
BIS,The Insolvency Service,26/03/2014,Travel and Subsistence,INVESTIGATION & ENFORCEMENT SERVICES                                                                ,ARVAL PHH BUSINESS SOLUTIONS LIMITED,BA0000273638,76.79,224235985
BIS,The Insolvency Service,26/03/2014,Travel and Subsistence,INVESTIGATION & ENFORCEMENT SERVICES                                                                ,ARVAL PHH BUSINESS SOLUTIONS LIMITED,BA0000273645,-60.00,224235985
BIS,The Insolvency Service,26/03/2014,Travel and Subsistence,INVESTIGATION & ENFORCEMENT SERVICES                                                                ,ARVAL PHH BUSINESS SOLUTIONS LIMITED,BA0000273645,-25.00,224235985
BIS,The Insolvency Service,26/03/2014,Travel and Subsistence,INVESTIGATION & ENFORCEMENT SERVICES                                                                ,ARVAL PHH BUSINESS SOLUTIONS LIMITED,BA0000273645,127.90,224235985
BIS,The Insolvency Service,26/03/2014,Travel and Subsistence,OFFICIAL RECEIVER SERVICES                                                                          ,ARVAL PHH BUSINESS SOLUTIONS LIMITED,BA0000273638,816.94,224235985
BIS,The Insolvency Service,11/03/2014,Agency Workers,"PLANNING, PERFORMANCE & PROJECTS                                                                    ",ATOS IT SERVICES UK LTD,BA0000272951,"18,758.42",
BIS,The Insolvency Service,06/03/2014,Accommodation,OFFICIAL RECEIVER SERVICES                                                                          ,AUCTUS LIMITED,BA0000272816,"2,890.00",677450896
BIS,The Insolvency Service,06/03/2014,Accommodation,OFFICIAL RECEIVER SERVICES                                                                          ,AUCTUS LIMITED,BA0000272821,385.00,677450896
BIS,The Insolvency Service,06/03/2014,Accommodation,OFFICIAL RECEIVER SERVICES                                                                          ,AUCTUS LIMITED,BA0000272822,90.00,677450896
BIS,The Insolvency Service,01/03/2014,Accommodation,OFFICIAL RECEIVER SERVICES                                                                          ,B&Q                                                         ,BA0000273613,34.90,
BIS,The Insolvency Service,01/03/2014,Accommodation,OFFICIAL RECEIVER SERVICES                                                                          ,B&Q                                                         ,BA0000273613,-11.94,
BIS,The Insolvency Service,01/03/2014,Accommodation,OFFICIAL RECEIVER SERVICES                                                                          ,B&Q                                                         ,BA0000273613,11.94,
BIS,The Insolvency Service,04/03/2014,Agency Workers,"PLANNING, PERFORMANCE & PROJECTS                                                                    ",BADENOCH & CLARK,BA0000272748,837.00,232347975
BIS,The Insolvency Service,04/03/2014,Agency Workers,"PLANNING, PERFORMANCE & PROJECTS                                                                    ",BADENOCH & CLARK,BA0000272749,930.00,232347975
BIS,The Insolvency Service,04/03/2014,Agency Workers,"PLANNING, PERFORMANCE & PROJECTS                                                                    ",BADENOCH & CLARK,BA0000272750,186.00,232347975
BIS,The Insolvency Service,06/03/2014,Agency Workers,INFORMATION TECHNOLOGY                                                                              ,BADENOCH & CLARK,BA0000272753,"4,677.20",232347975
BIS,The Insolvency Service,06/03/2014,Agency Workers,INFORMATION TECHNOLOGY                                                                              ,BADENOCH & CLARK,BA0000272753,"5,194.50",232347975
BIS,The Insolvency Service,06/03/2014,Agency Workers,INVESTIGATION & ENFORCEMENT SERVICES                                                                ,BADENOCH & CLARK,BA0000272753,"2,525.70",232347975
BIS,The Insolvency Service,06/03/2014,Agency Workers,INVESTIGATION & ENFORCEMENT SERVICES                                                                ,BADENOCH & CLARK,BA0000272753,"3,047.99",232347975
BIS,The Insolvency Service,06/03/2014,Agency Workers,INVESTIGATION & ENFORCEMENT SERVICES                                                                ,BADENOCH & CLARK,BA0000272753,"3,266.45",232347975
BIS,The Insolvency Service,06/03/2014,Agency Workers,INVESTIGATION & ENFORCEMENT SERVICES                                                                ,BADENOCH & CLARK,BA0000272753,"4,895.47",232347975
BIS,The Insolvency Service,06/03/2014,Agency Workers,INVESTIGATION & ENFORCEMENT SERVICES                                                                ,BADENOCH & CLARK,BA0000272753,"5,770.76",232347975
BIS,The Insolvency Service,06/03/2014,Agency Workers,INVESTIGATION & ENFORCEMENT SERVICES                                                                ,BADENOCH & CLARK,BA0000272753,"5,877.70",232347975
BIS,The Insolvency Service,06/03/2014,Agency Workers,INVESTIGATION & ENFORCEMENT SERVICES                                                                ,BADENOCH & CLARK,BA0000272753,"7,904.52",232347975
BIS,The Insolvency Service,06/03/2014,Agency Workers,INVESTIGATION & ENFORCEMENT SERVICES                                                                ,BADENOCH & CLARK,BA0000272753,"9,372.38",232347975
BIS,The Insolvency Service,06/03/2014,Agency Workers,INVESTIGATION & ENFORCEMENT SERVICES                                                                ,BADENOCH & CLARK,BA0000272753,"20,874.46",232347975
BIS,The Insolvency Service,11/03/2014,Agency Workers,"PLANNING, PERFORMANCE & PROJECTS                                                                    ",BADENOCH & CLARK,BA0000272913,"3,300.00",232347975
BIS,The Insolvency Service,11/03/2014,Agency Workers,"PLANNING, PERFORMANCE & PROJECTS                                                                    ",BADENOCH & CLARK,BA0000272914,"3,300.00",232347975
BIS,The Insolvency Service,11/03/2014,Computer and IT Systems,INFORMATION TECHNOLOGY                                                                              ,BADENOCH & CLARK,BA0000272976,323.46,232347975
BIS,The Insolvency Service,11/03/2014,Computer and IT Systems,INFORMATION TECHNOLOGY                                                                              ,BADENOCH & CLARK,BA0000272977,323.46,232347975
BIS,The Insolvency Service,11/03/2014,Computer and IT Systems,INFORMATION TECHNOLOGY                                                                              ,BADENOCH & CLARK,BA0000272978,161.74,232347975
BIS,The Insolvency Service,11/03/2014,Computer and IT Systems,INFORMATION TECHNOLOGY                                                                              ,BADENOCH & CLARK,BA0000272979,323.46,232347975
BIS,The Insolvency Service,13/03/2014,Agency Workers,FINANCE AND COMMERCIAL                                                                              ,BADENOCH & CLARK,BA0000273074,"3,866.64",232347975
BIS,The Insolvency Service,13/03/2014,Agency Workers,"PLANNING, PERFORMANCE & PROJECTS                                                                    ",BADENOCH & CLARK,BA0000273040,837.00,232347975
BIS,The Insolvency Service,13/03/2014,Computer and IT Systems,INFORMATION TECHNOLOGY                                                                              ,BADENOCH & CLARK,BA0000272984,485.20,232347975
BIS,The Insolvency Service,13/03/2014,Computer and IT Systems,INFORMATION TECHNOLOGY                                                                              ,BADENOCH & CLARK,BA0000272985,161.74,232347975
BIS,The Insolvency Service,13/03/2014,Computer and IT Systems,INFORMATION TECHNOLOGY                                                                              ,BADENOCH & CLARK,BA0000272986,646.92,232347975
BIS,The Insolvency Service,13/03/2014,Computer and IT Systems,INFORMATION TECHNOLOGY                                                                              ,BADENOCH & CLARK,BA0000272987,323.46,232347975
BIS,The Insolvency Service,18/03/2014,Agency Workers,"PLANNING, PERFORMANCE & PROJECTS                                                                    ",BADENOCH & CLARK,BA0000273267,837.00,232347975
BIS,The Insolvency Service,18/03/2014,Computer and IT Systems,BUSINESS SERVICES DIRECTORATE                                                                       ,BADENOCH & CLARK,BA0000273201,"3,300.00",232347975
BIS,The Insolvency Service,24/03/2014,Agency Workers,"PLANNING, PERFORMANCE & PROJECTS                                                                    ",BADENOCH & CLARK,BA0000273414,930.00,232347975
BIS,The Insolvency Service,25/03/2014,Agency Workers,"PLANNING, PERFORMANCE & PROJECTS                                                                    ",BADENOCH & CLARK,BA0000273577,"3,866.64",232347975
BIS,The Insolvency Service,25/03/2014,Computer and IT Systems,BUSINESS SERVICES DIRECTORATE                                                                       ,BADENOCH & CLARK,BA0000273591,"3,300.00",232347975
BIS,The Insolvency Service,27/03/2014,Agency Workers,FINANCE AND COMMERCIAL                                                                              ,BADENOCH & CLARK,BA0000273716,"3,093.31",232347975
BIS,The Insolvency Service,27/03/2014,Agency Workers,FINANCE AND COMMERCIAL                                                                              ,BADENOCH & CLARK,BA0000273717,"3,479.98",232347975
BIS,The Insolvency Service,27/03/2014,Agency Workers,FINANCE AND COMMERCIAL                                                                              ,BADENOCH & CLARK,BA0000273718,"3,866.64",232347975
BIS,The Insolvency Service,27/03/2014,Agency Workers,FINANCE AND COMMERCIAL                                                                              ,BADENOCH & CLARK,BA0000273719,"3,866.64",232347975
BIS,The Insolvency Service,27/03/2014,Agency Workers,FINANCE AND COMMERCIAL                                                                              ,BADENOCH & CLARK,BA0000273720,"3,866.64",232347975
BIS,The Insolvency Service,27/03/2014,Agency Workers,FINANCE AND COMMERCIAL                                                                              ,BADENOCH & CLARK,BA0000273722,"3,866.64",232347975
BIS,The Insolvency Service,28/03/2014,Agency Workers,"PLANNING, PERFORMANCE & PROJECTS                                                                    ",BADENOCH & CLARK,BA0000273778,744.00,232347975
BIS,The Insolvency Service,25/03/2014,Insolvency Case Related Costs,BUSINESS SERVICES DIRECTORATE                                                                       ,BAINES & ERNST LTD,BA0000273508,"1,170.00",
BIS,The Insolvency Service,24/03/2014,Investigation and Enforcement Costs,INVESTIGATION & ENFORCEMENT SERVICES                                                                ,BAKER TILLY,BA0000273457,"3,500.00",890965570
BIS,The Insolvency Service,24/03/2014,Investigation and Enforcement Costs,INVESTIGATION & ENFORCEMENT SERVICES                                                                ,BAKER TILLY,BA0000273461,"2,900.00",890965570
BIS,The Insolvency Service,24/03/2014,Investigation and Enforcement Costs,INVESTIGATION & ENFORCEMENT SERVICES                                                                ,BAKER TILLY,BA0000273458,"3,525.35",890965570
BIS,The Insolvency Service,24/03/2014,Investigation and Enforcement Costs,INVESTIGATION & ENFORCEMENT SERVICES                                                                ,BAKER TILLY,BA0000273459,"7,009.92",890965570
BIS,The Insolvency Service,28/03/2014,Investigation and Enforcement Costs,INVESTIGATION & ENFORCEMENT SERVICES                                                                ,BAKER TILLY,BA0000273803,"14,911.10",890965570
BIS,The Insolvency Service,01/03/2014,Computer and IT Systems,FINANCE AND COMMERCIAL                                                                              ,"BALSAMIQ STUDIOS, LLC                                       ",BA0000273613,95.19,
BIS,The Insolvency Service,01/03/2014,Computer and IT Systems,FINANCE AND COMMERCIAL                                                                              ,"BALSAMIQ STUDIOS, LLC                                       ",BA0000273613,2.62,
BIS,The Insolvency Service,13/03/2014,Accommodation,ESTATES,BANNER BUSINESS SERVICES Ltd.,BA0000273071,5.40,731860439
BIS,The Insolvency Service,13/03/2014,Accommodation,ESTATES,BANNER BUSINESS SERVICES Ltd.,BA0000273071,14.58,731860439
BIS,The Insolvency Service,13/03/2014,Accommodation,ESTATES,BANNER BUSINESS SERVICES Ltd.,BA0000273071,25.74,731860439
BIS,The Insolvency Service,13/03/2014,Accommodation,ESTATES,BANNER BUSINESS SERVICES Ltd.,BA0000273071,30.96,731860439
BIS,The Insolvency Service,13/03/2014,Accommodation,ESTATES,BANNER BUSINESS SERVICES Ltd.,BA0000273071,34.50,731860439
BIS,The Insolvency Service,13/03/2014,Accommodation,ESTATES,BANNER BUSINESS SERVICES Ltd.,BA0000273071,35.88,731860439
BIS,The Insolvency Service,13/03/2014,Accommodation,ESTATES,BANNER BUSINESS SERVICES Ltd.,BA0000273071,44.58,731860439
BIS,The Insolvency Service,13/03/2014,Accommodation,ESTATES,BANNER BUSINESS SERVICES Ltd.,BA0000273071,47.50,731860439
BIS,The Insolvency Service,13/03/2014,Accommodation,ESTATES,BANNER BUSINESS SERVICES Ltd.,BA0000273071,54.00,731860439
BIS,The Insolvency Service,13/03/2014,Accommodation,ESTATES,BANNER BUSINESS SERVICES Ltd.,BA0000273071,54.62,731860439
BIS,The Insolvency Service,13/03/2014,Accommodation,ESTATES,BANNER BUSINESS SERVICES Ltd.,BA0000273071,56.20,731860439
BIS,The Insolvency Service,13/03/2014,Accommodation,ESTATES,BANNER BUSINESS SERVICES Ltd.,BA0000273071,57.24,731860439
BIS,The Insolvency Service,13/03/2014,Accommodation,ESTATES,BANNER BUSINESS SERVICES Ltd.,BA0000273071,65.80,731860439
BIS,The Insolvency Service,13/03/2014,Accommodation,ESTATES,BANNER BUSINESS SERVICES Ltd.,BA0000273071,68.84,731860439
BIS,The Insolvency Service,13/03/2014,Accommodation,ESTATES,BANNER BUSINESS SERVICES Ltd.,BA0000273071,69.32,731860439
BIS,The Insolvency Service,13/03/2014,Accommodation,ESTATES,BANNER BUSINESS SERVICES Ltd.,BA0000273071,77.26,731860439
BIS,The Insolvency Service,13/03/2014,Accommodation,ESTATES,BANNER BUSINESS SERVICES Ltd.,BA0000273071,81.26,731860439
BIS,The Insolvency Service,13/03/2014,Accommodation,ESTATES,BANNER BUSINESS SERVICES Ltd.,BA0000273071,84.50,731860439
BIS,The Insolvency Service,13/03/2014,Accommodation,ESTATES,BANNER BUSINESS SERVICES Ltd.,BA0000273071,86.60,731860439
BIS,The Insolvency Service,13/03/2014,Accommodation,ESTATES,BANNER BUSINESS SERVICES Ltd.,BA0000273071,91.82,731860439
BIS,The Insolvency Service,13/03/2014,Accommodation,ESTATES,BANNER BUSINESS SERVICES Ltd.,BA0000273071,93.94,731860439
BIS,The Insolvency Service,13/03/2014,Accommodation,ESTATES,BANNER BUSINESS SERVICES Ltd.,BA0000273071,109.10,731860439
BIS,The Insolvency Service,13/03/2014,Accommodation,ESTATES,BANNER BUSINESS SERVICES Ltd.,BA0000273071,116.00,731860439
BIS,The Insolvency Service,13/03/2014,Accommodation,ESTATES,BANNER BUSINESS SERVICES Ltd.,BA0000273071,150.30,731860439
BIS,The Insolvency Service,13/03/2014,Accommodation,ESTATES,BANNER BUSINESS SERVICES Ltd.,BA0000273071,218.84,731860439
BIS,The Insolvency Service,13/03/2014,Accommodation,ESTATES,BANNER BUSINESS SERVICES Ltd.,BA0000273071,586.62,731860439
BIS,The Insolvency Service,13/03/2014,Accommodation,ESTATES,BANNER BUSINESS SERVICES Ltd.,BA0000273071,751.49,731860439
BIS,The Insolvency Service,24/03/2014,Office Supplies and Services,BUSINESS SERVICES DIRECTORATE                                                                       ,BANNER BUSINESS SERVICES Ltd.,BA0000273466,174.20,731860439
BIS,The Insolvency Service,24/03/2014,Office Supplies and Services,INFORMATION TECHNOLOGY                                                                              ,BANNER BUSINESS SERVICES Ltd.,BA0000273466,"1,381.07",731860439
BIS,The Insolvency Service,24/03/2014,Office Supplies and Services,INFORMATION TECHNOLOGY                                                                              ,BANNER BUSINESS SERVICES Ltd.,BA0000273466,"2,447.28",731860439
BIS,The Insolvency Service,24/03/2014,Office Supplies and Services,INVESTIGATION & ENFORCEMENT SERVICES                                                                ,BANNER BUSINESS SERVICES Ltd.,BA0000273466,90.36,731860439
BIS,The Insolvency Service,24/03/2014,Office Supplies and Services,OFFICIAL RECEIVER SERVICES                                                                          ,BANNER BUSINESS SERVICES Ltd.,BA0000273466,5.38,731860439
BIS,The Insolvency Service,24/03/2014,Office Supplies and Services,OFFICIAL RECEIVER SERVICES                                                                          ,BANNER BUSINESS SERVICES Ltd.,BA0000273466,7.06,731860439
BIS,The Insolvency Service,24/03/2014,Office Supplies and Services,OFFICIAL RECEIVER SERVICES                                                                          ,BANNER BUSINESS SERVICES Ltd.,BA0000273466,46.39,731860439
BIS,The Insolvency Service,24/03/2014,Office Supplies and Services,OFFICIAL RECEIVER SERVICES                                                                          ,BANNER BUSINESS SERVICES Ltd.,BA0000273466,62.04,731860439
BIS,The Insolvency Service,24/03/2014,Office Supplies and Services,OFFICIAL RECEIVER SERVICES                                                                          ,BANNER BUSINESS SERVICES Ltd.,BA0000273466,98.65,731860439
BIS,The Insolvency Service,24/03/2014,Office Supplies and Services,OFFICIAL RECEIVER SERVICES                                                                          ,BANNER BUSINESS SERVICES Ltd.,BA0000273466,118.36,731860439
BIS,The Insolvency Service,24/03/2014,Office Supplies and Services,OFFICIAL RECEIVER SERVICES                                                                          ,BANNER BUSINESS SERVICES Ltd.,BA0000273466,196.98,731860439
BIS,The Insolvency Service,24/03/2014,Office Supplies and Services,OFFICIAL RECEIVER SERVICES                                                                          ,BANNER BUSINESS SERVICES Ltd.,BA0000273466,209.80,731860439
BIS,The Insolvency Service,24/03/2014,Office Supplies and Services,OFFICIAL RECEIVER SERVICES                                                                          ,BANNER BUSINESS SERVICES Ltd.,BA0000273466,214.46,731860439
BIS,The Insolvency Service,24/03/2014,Office Supplies and Services,OFFICIAL RECEIVER SERVICES                                                                          ,BANNER BUSINESS SERVICES Ltd.,BA0000273466,238.15,731860439
BIS,The Insolvency Service,24/03/2014,Office Supplies and Services,OFFICIAL RECEIVER SERVICES                                                                          ,BANNER BUSINESS SERVICES Ltd.,BA0000273466,246.89,731860439
BIS,The Insolvency Service,24/03/2014,Office Supplies and Services,OFFICIAL RECEIVER SERVICES                                                                          ,BANNER BUSINESS SERVICES Ltd.,BA0000273466,279.76,731860439
BIS,The Insolvency Service,24/03/2014,Office Supplies and Services,OFFICIAL RECEIVER SERVICES                                                                          ,BANNER BUSINESS SERVICES Ltd.,BA0000273466,280.92,731860439
BIS,The Insolvency Service,24/03/2014,Office Supplies and Services,OFFICIAL RECEIVER SERVICES                                                                          ,BANNER BUSINESS SERVICES Ltd.,BA0000273466,288.04,731860439
BIS,The Insolvency Service,24/03/2014,Office Supplies and Services,OFFICIAL RECEIVER SERVICES                                                                          ,BANNER BUSINESS SERVICES Ltd.,BA0000273466,294.89,731860439
BIS,The Insolvency Service,24/03/2014,Office Supplies and Services,OFFICIAL RECEIVER SERVICES                                                                          ,BANNER BUSINESS SERVICES Ltd.,BA0000273466,315.02,731860439
BIS,The Insolvency Service,24/03/2014,Office Supplies and Services,OFFICIAL RECEIVER SERVICES                                                                          ,BANNER BUSINESS SERVICES Ltd.,BA0000273466,340.37,731860439
BIS,The Insolvency Service,24/03/2014,Office Supplies and Services,OFFICIAL RECEIVER SERVICES                                                                          ,BANNER BUSINESS SERVICES Ltd.,BA0000273466,352.00,731860439
BIS,The Insolvency Service,24/03/2014,Office Supplies and Services,OFFICIAL RECEIVER SERVICES                                                                          ,BANNER BUSINESS SERVICES Ltd.,BA0000273466,375.32,731860439
BIS,The Insolvency Service,24/03/2014,Office Supplies and Services,OFFICIAL RECEIVER SERVICES                                                                          ,BANNER BUSINESS SERVICES Ltd.,BA0000273466,377.09,731860439
BIS,The Insolvency Service,24/03/2014,Office Supplies and Services,OFFICIAL RECEIVER SERVICES                                                                          ,BANNER BUSINESS SERVICES Ltd.,BA0000273466,380.15,731860439
BIS,The Insolvency Service,24/03/2014,Office Supplies and Services,OFFICIAL RECEIVER SERVICES                                                                          ,BANNER BUSINESS SERVICES Ltd.,BA0000273466,389.60,731860439
BIS,The Insolvency Service,24/03/2014,Office Supplies and Services,OFFICIAL RECEIVER SERVICES                                                                          ,BANNER BUSINESS SERVICES Ltd.,BA0000273466,425.53,731860439
BIS,The Insolvency Service,24/03/2014,Office Supplies and Services,OFFICIAL RECEIVER SERVICES                                                                          ,BANNER BUSINESS SERVICES Ltd.,BA0000273466,728.80,731860439
BIS,The Insolvency Service,24/03/2014,Office Supplies and Services,OFFICIAL RECEIVER SERVICES                                                                          ,BANNER BUSINESS SERVICES Ltd.,BA0000273466,"1,007.98",731860439
BIS,The Insolvency Service,14/03/2014,Insolvency Case Related Costs,FINANCE AND COMMERCIAL,BCR                                                         ,BA0000273077,"32,411.75",
BIS,The Insolvency Service,13/03/2014,Investigation and Enforcement Costs,INVESTIGATION & ENFORCEMENT SERVICES                                                                ,BDO STOY HAYWARD,BA0000273005,"3,030.75",232573867
BIS,The Insolvency Service,13/03/2014,Investigation and Enforcement Costs,INVESTIGATION & ENFORCEMENT SERVICES                                                                ,BDO STOY HAYWARD,BA0000273006,"3,385.25",232573867
BIS,The Insolvency Service,13/03/2014,Investigation and Enforcement Costs,INVESTIGATION & ENFORCEMENT SERVICES                                                                ,BDO STOY HAYWARD,BA0000273007,"4,966.25",232573867
BIS,The Insolvency Service,13/03/2014,Investigation and Enforcement Costs,INVESTIGATION & ENFORCEMENT SERVICES                                                                ,BDO STOY HAYWARD,BA0000273008,"2,866.75",232573867
BIS,The Insolvency Service,18/03/2014,Investigation and Enforcement Costs,INVESTIGATION & ENFORCEMENT SERVICES                                                                ,BDO STOY HAYWARD,BA0000273191,"3,597.55",232573867
BIS,The Insolvency Service,01/03/2014,Telecoms,FINANCE AND COMMERCIAL                                                                              ,BE UN LIMITED,BA0000273613,22.44,
BIS,The Insolvency Service,11/03/2014,Accommodation,ESTATES,BERKLEY ESTATES LONDON LIMITED,BA0000272928,"4,488.00",
BIS,The Insolvency Service,11/03/2014,Accommodation,ESTATES,BERKLEY ESTATES LONDON LIMITED,BA0000272929,"2,010.43",
BIS,The Insolvency Service,11/03/2014,Accommodation,ESTATES,BERKLEY ESTATES LONDON LIMITED,BA0000272931,"49,500.00",
BIS,The Insolvency Service,11/03/2014,Accommodation,ESTATES,BERKLEY ESTATES LONDON LIMITED,BA0000272930,"16,352.50",
BIS,The Insolvency Service,13/03/2014,Accommodation,"PLANNING, PERFORMANCE & PROJECTS                                                                    ",BERWIN LEIGHTON PAISNER,BA0000273081,"144,000.00",
BIS,The Insolvency Service,13/03/2014,Accommodation,"PLANNING, PERFORMANCE & PROJECTS                                                                    ",BERWIN LEIGHTON PAISNER,BA0000273081,"80,000.00",
BIS,The Insolvency Service,13/03/2014,Accommodation,ESTATES,BERWIN LEIGHTON PAISNER,BA0000273081,80.00,
BIS,The Insolvency Service,18/03/2014,Computer and IT Systems,INFORMATION TECHNOLOGY                                                                              ,BERWIN LEIGHTON PAISNER,BA0000273207,"1,250.00",243244976
BIS,The Insolvency Service,18/03/2014,Computer and IT Systems,INFORMATION TECHNOLOGY                                                                              ,BERWIN LEIGHTON PAISNER,BA0000273209,"1,000.00",243244976
BIS,The Insolvency Service,07/03/2014,Department for Business Innovation and Skills,PEOPLE & CAPABILITY                                                                                 ,BIS - DEPT. FOR BUSINESS INNOVATION & SKILLS,BA0000272847,"96,747.00",888825550
BIS,The Insolvency Service,24/03/2014,Accommodation,ESTATES,BIS - DEPT. FOR BUSINESS INNOVATION & SKILLS,BA0000273462,"274,704.72",888825550
BIS,The Insolvency Service,24/03/2014,Accommodation,ESTATES,BIS - DEPT. FOR BUSINESS INNOVATION & SKILLS,BA0000273462,"119,011.04",888825550
BIS,The Insolvency Service,24/03/2014,Accommodation,ESTATES,BIS - DEPT. FOR BUSINESS INNOVATION & SKILLS,BA0000273462,"1,882.09",888825550
BIS,The Insolvency Service,24/03/2014,Accommodation,ESTATES,BIS - DEPT. FOR BUSINESS INNOVATION & SKILLS,BA0000273462,"5,661.51",888825550
BIS,The Insolvency Service,24/03/2014,Accommodation,ESTATES,BIS - DEPT. FOR BUSINESS INNOVATION & SKILLS,BA0000273462,"11,149.85",888825550
BIS,The Insolvency Service,24/03/2014,Accommodation,ESTATES,BIS - DEPT. FOR BUSINESS INNOVATION & SKILLS,BA0000273462,"12,366.54",888825550
BIS,The Insolvency Service,24/03/2014,Accommodation,ESTATES,BIS - DEPT. FOR BUSINESS INNOVATION & SKILLS,BA0000273462,"12,931.18",888825550
BIS,The Insolvency Service,24/03/2014,Accommodation,ESTATES,BIS - DEPT. FOR BUSINESS INNOVATION & SKILLS,BA0000273462,"15,305.08",888825550
BIS,The Insolvency Service,24/03/2014,Accommodation,ESTATES,BIS - DEPT. FOR BUSINESS INNOVATION & SKILLS,BA0000273462,"34,819.09",888825550
BIS,The Insolvency Service,24/03/2014,Accommodation,ESTATES,BIS - DEPT. FOR BUSINESS INNOVATION & SKILLS,BA0000273462,"12,537.58",888825550
BIS,The Insolvency Service,24/03/2014,Accommodation,ESTATES,BIS - DEPT. FOR BUSINESS INNOVATION & SKILLS,BA0000273462,316.63,888825550
BIS,The Insolvency Service,27/03/2014,Department for Business Innovation and Skills,PEOPLE & CAPABILITY                                                                                 ,BIS - DEPT. FOR BUSINESS INNOVATION & SKILLS,BA0000273687,"10,197.00",888825550
BIS,The Insolvency Service,27/03/2014,Secretariat Costs,PEOPLE & CAPABILITY                                                                                 ,BIS - DEPT. FOR BUSINESS INNOVATION & SKILLS,BA0000273696,"9,229.88",888825550
BIS,The Insolvency Service,06/03/2014,Investigation and Enforcement Costs,INVESTIGATION & ENFORCEMENT SERVICES                                                                ,BOND DICKINSON                                              ,BA0000272836,"38,421.64",123392627
BIS,The Insolvency Service,11/03/2014,Investigation and Enforcement Costs,INVESTIGATION & ENFORCEMENT SERVICES                                                                ,BOND DICKINSON                                              ,BA0000272962,"56,720.00",123392627
BIS,The Insolvency Service,11/03/2014,Investigation and Enforcement Costs,INVESTIGATION & ENFORCEMENT SERVICES                                                                ,BOND DICKINSON                                              ,BA0000272957,"4,178.20",123392627
BIS,The Insolvency Service,11/03/2014,Investigation and Enforcement Costs,INVESTIGATION & ENFORCEMENT SERVICES                                                                ,BOND DICKINSON                                              ,BA0000272962,"114,337.67",123392627
BIS,The Insolvency Service,11/03/2014,Investigation and Enforcement Costs,INVESTIGATION & ENFORCEMENT SERVICES                                                                ,BOND DICKINSON                                              ,BA0000272958,"8,737.62",123392627
BIS,The Insolvency Service,11/03/2014,Investigation and Enforcement Costs,INVESTIGATION & ENFORCEMENT SERVICES                                                                ,BOND DICKINSON                                              ,BA0000272962,"6,784.24",123392627
BIS,The Insolvency Service,11/03/2014,Investigation and Enforcement Costs,INVESTIGATION & ENFORCEMENT SERVICES                                                                ,BOND DICKINSON                                              ,BA0000272962,"4,043.00",123392627
BIS,The Insolvency Service,11/03/2014,Investigation and Enforcement Costs,INVESTIGATION & ENFORCEMENT SERVICES                                                                ,BOND DICKINSON                                              ,BA0000272962,"18,841.25",123392627
BIS,The Insolvency Service,11/03/2014,Investigation and Enforcement Costs,INVESTIGATION & ENFORCEMENT SERVICES                                                                ,BOND DICKINSON                                              ,BA0000272962,"32,393.20",123392627
BIS,The Insolvency Service,14/03/2014,Investigation and Enforcement Costs,INVESTIGATION & ENFORCEMENT SERVICES                                                                ,BOND DICKINSON                                              ,BA0000273137,"12,500.00",
BIS,The Insolvency Service,28/03/2014,Investigation and Enforcement Costs,INVESTIGATION & ENFORCEMENT SERVICES                                                                ,BOND DICKINSON                                              ,BA0000273806,"64,031.50",123392627
BIS,The Insolvency Service,28/03/2014,Investigation and Enforcement Costs,INVESTIGATION & ENFORCEMENT SERVICES                                                                ,BOND DICKINSON                                              ,BA0000273800,"2,719.30",123392627
BIS,The Insolvency Service,28/03/2014,Investigation and Enforcement Costs,INVESTIGATION & ENFORCEMENT SERVICES                                                                ,BOND DICKINSON                                              ,BA0000273806,"89,405.65",123392627
BIS,The Insolvency Service,28/03/2014,Investigation and Enforcement Costs,INVESTIGATION & ENFORCEMENT SERVICES                                                                ,BOND DICKINSON                                              ,BA0000273806,"3,428.20",123392627
BIS,The Insolvency Service,28/03/2014,Investigation and Enforcement Costs,INVESTIGATION & ENFORCEMENT SERVICES                                                                ,BOND DICKINSON                                              ,BA0000273806,"10,982.60",123392627
BIS,The Insolvency Service,28/03/2014,Investigation and Enforcement Costs,INVESTIGATION & ENFORCEMENT SERVICES                                                                ,BOND DICKINSON                                              ,BA0000273806,"5,643.18",123392627
BIS,The Insolvency Service,28/03/2014,Investigation and Enforcement Costs,INVESTIGATION & ENFORCEMENT SERVICES                                                                ,BOND DICKINSON                                              ,BA0000273806,"15,904.60",123392627
BIS,The Insolvency Service,28/03/2014,Investigation and Enforcement Costs,INVESTIGATION & ENFORCEMENT SERVICES                                                                ,BOND DICKINSON                                              ,BA0000273806,"16,461.16",123392627
BIS,The Insolvency Service,20/03/2014,Training Costs,PEOPLE & CAPABILITY                                                                                 ,BPP PROFESSIONAL EDUCATION,BA0000273297,"3,090.00",466451629
BIS,The Insolvency Service,20/03/2014,Training Costs,PEOPLE & CAPABILITY                                                                                 ,BPP PROFESSIONAL EDUCATION,BA0000273370,540.00,466451629
BIS,The Insolvency Service,20/03/2014,Training Costs,PEOPLE & CAPABILITY                                                                                 ,BPP PROFESSIONAL EDUCATION,BA0000273325,"2,850.00",466451629
BIS,The Insolvency Service,27/03/2014,Training Costs,PEOPLE & CAPABILITY                                                                                 ,BPP PROFESSIONAL EDUCATION,BA0000273674,"1,187.49",891156018
BIS,The Insolvency Service,27/03/2014,Training Costs,PEOPLE & CAPABILITY                                                                                 ,BPP PROFESSIONAL EDUCATION,BA0000273675,"1,399.98",891156018
BIS,The Insolvency Service,18/03/2014,Accommodation,ESTATES,BRITISH GAS BUSINESS,BA0000273230,80.04,684966762
BIS,The Insolvency Service,18/03/2014,Accommodation,ESTATES,BRITISH GAS BUSINESS,BA0000273231,253.94,684966762
BIS,The Insolvency Service,18/03/2014,Accommodation,ESTATES,BRITISH GAS BUSINESS,BA0000273232,409.44,684966762
BIS,The Insolvency Service,18/03/2014,Accommodation,ESTATES,BRITISH GAS BUSINESS,BA0000273233,24.75,684966762
BIS,The Insolvency Service,18/03/2014,Accommodation,ESTATES,BRITISH GAS BUSINESS,BA0000273234,426.35,684966762
BIS,The Insolvency Service,18/03/2014,Accommodation,ESTATES,BRITISH GAS BUSINESS,BA0000273235,563.89,684966762
BIS,The Insolvency Service,18/03/2014,Accommodation,ESTATES,BRITISH GAS BUSINESS,BA0000273236,88.73,684966762
BIS,The Insolvency Service,18/03/2014,Accommodation,ESTATES,BRITISH GAS BUSINESS,BA0000273237,135.35,684966762
BIS,The Insolvency Service,18/03/2014,Accommodation,ESTATES,BRITISH GAS BUSINESS,BA0000273238,158.27,684966762
BIS,The Insolvency Service,18/03/2014,Accommodation,ESTATES,BRITISH GAS BUSINESS,BA0000273239,157.82,684966762
BIS,The Insolvency Service,18/03/2014,Accommodation,ESTATES,BRITISH GAS BUSINESS,BA0000273240,208.63,684966762
BIS,The Insolvency Service,18/03/2014,Accommodation,ESTATES,BRITISH GAS BUSINESS,BA0000273241,288.34,684966762
BIS,The Insolvency Service,18/03/2014,Accommodation,ESTATES,BRITISH GAS BUSINESS,BA0000273242,310.58,684966762
BIS,The Insolvency Service,18/03/2014,Accommodation,ESTATES,BRITISH GAS BUSINESS,BA0000273243,24.35,684966762
BIS,The Insolvency Service,24/03/2014,Accommodation,ESTATES,BRITISH GAS BUSINESS,BA0000273396,61.85,684966762
BIS,The Insolvency Service,20/03/2014,Agency Workers,"PLANNING, PERFORMANCE & PROJECTS                                                                    ",BROOK STREET (UK) LTD,BA0000273312,713.70,
BIS,The Insolvency Service,25/03/2014,Computer and IT Systems,INVESTIGATION & ENFORCEMENT SERVICES                                                                ,BT BUSINESS DIRECT LTD,BA0000273587,943.84,245719348
BIS,The Insolvency Service,11/03/2014,Telecoms,BUSINESS SERVICES DIRECTORATE                                                                       ,BT CONFERENCING SERVICES,BA0000272898,3.55,245719348
BIS,The Insolvency Service,11/03/2014,Telecoms,BUSINESS SERVICES DIRECTORATE                                                                       ,BT CONFERENCING SERVICES,BA0000272898,4.18,245719348
BIS,The Insolvency Service,11/03/2014,Telecoms,FACILITIES                                                                                          ,BT CONFERENCING SERVICES,BA0000272898,18.96,245719348
BIS,The Insolvency Service,11/03/2014,Telecoms,FACILITIES                                                                                          ,BT CONFERENCING SERVICES,BA0000272898,31.96,245719348
BIS,The Insolvency Service,11/03/2014,Telecoms,FACILITIES                                                                                          ,BT CONFERENCING SERVICES,BA0000272898,270.78,245719348
BIS,The Insolvency Service,11/03/2014,Telecoms,INFORMATION TECHNOLOGY                                                                              ,BT CONFERENCING SERVICES,BA0000272898,454.66,245719348
BIS,The Insolvency Service,11/03/2014,Telecoms,OFFICIAL RECEIVER SERVICES                                                                          ,BT CONFERENCING SERVICES,BA0000272898,0.18,245719348
BIS,The Insolvency Service,11/03/2014,Telecoms,OFFICIAL RECEIVER SERVICES                                                                          ,BT CONFERENCING SERVICES,BA0000272898,1.14,245719348
BIS,The Insolvency Service,11/03/2014,Telecoms,OFFICIAL RECEIVER SERVICES                                                                          ,BT CONFERENCING SERVICES,BA0000272898,1.72,245719348
BIS,The Insolvency Service,11/03/2014,Telecoms,OFFICIAL RECEIVER SERVICES                                                                          ,BT CONFERENCING SERVICES,BA0000272898,3.36,245719348
BIS,The Insolvency Service,11/03/2014,Telecoms,OFFICIAL RECEIVER SERVICES                                                                          ,BT CONFERENCING SERVICES,BA0000272898,7.70,245719348
BIS,The Insolvency Service,11/03/2014,Telecoms,OFFICIAL RECEIVER SERVICES                                                                          ,BT CONFERENCING SERVICES,BA0000272898,8.64,245719348
BIS,The Insolvency Service,11/03/2014,Telecoms,OFFICIAL RECEIVER SERVICES                                                                          ,BT CONFERENCING SERVICES,BA0000272898,18.50,245719348
BIS,The Insolvency Service,11/03/2014,Telecoms,OFFICIAL RECEIVER SERVICES                                                                          ,BT CONFERENCING SERVICES,BA0000272898,33.89,245719348
BIS,The Insolvency Service,11/03/2014,Telecoms,OFFICIAL RECEIVER SERVICES                                                                          ,BT CONFERENCING SERVICES,BA0000272898,37.14,245719348
BIS,The Insolvency Service,11/03/2014,Telecoms,"PLANNING, PERFORMANCE & PROJECTS",BT CONFERENCING SERVICES,BA0000272898,2.84,245719348
BIS,The Insolvency Service,01/03/2014,Telecoms,INFORMATION TECHNOLOGY                                                                              ,BT TELEPHONE PAYMENT CENTRE,BA0000273613,112.13,245719348
BIS,The Insolvency Service,01/03/2014,Telecoms,FINANCE AND COMMERCIAL                                                                              ,BT TELEPHONE PAYMENT CENTRE,BA0000273613,75.44,245719348
BIS,The Insolvency Service,01/03/2014,Telecoms,FINANCE AND COMMERCIAL                                                                              ,BT TELEPHONE PAYMENT CENTRE,BA0000273613,102.01,245719348
BIS,The Insolvency Service,01/03/2014,Telecoms,FINANCE AND COMMERCIAL                                                                              ,BT TELEPHONE PAYMENT CENTRE,BA0000273613,104.85,245719348
BIS,The Insolvency Service,01/03/2014,Telecoms,FINANCE AND COMMERCIAL                                                                              ,BT TELEPHONE PAYMENT CENTRE,BA0000273613,33.27,245719348
BIS,The Insolvency Service,01/03/2014,Telecoms,FINANCE AND COMMERCIAL                                                                              ,BT TELEPHONE PAYMENT CENTRE,BA0000273613,82.49,245719348
BIS,The Insolvency Service,01/03/2014,Telecoms,FINANCE AND COMMERCIAL                                                                              ,BT TELEPHONE PAYMENT CENTRE,BA0000273613,90.54,245719348
BIS,The Insolvency Service,01/03/2014,Telecoms,FINANCE AND COMMERCIAL                                                                              ,BT TELEPHONE PAYMENT CENTRE,BA0000273613,82.06,245719348
BIS,The Insolvency Service,01/03/2014,Telecoms,FINANCE AND COMMERCIAL                                                                              ,BT TELEPHONE PAYMENT CENTRE,BA0000273613,83.86,245719348
BIS,The Insolvency Service,01/03/2014,Telecoms,FINANCE AND COMMERCIAL                                                                              ,BT TELEPHONE PAYMENT CENTRE,BA0000273613,117.80,245719348
BIS,The Insolvency Service,01/03/2014,Telecoms,FINANCE AND COMMERCIAL                                                                              ,BT TELEPHONE PAYMENT CENTRE,BA0000273613,88.52,245719348
BIS,The Insolvency Service,01/03/2014,Telecoms,FINANCE AND COMMERCIAL                                                                              ,BT TELEPHONE PAYMENT CENTRE,BA0000273613,71.62,245719348
BIS,The Insolvency Service,01/03/2014,Telecoms,FINANCE AND COMMERCIAL                                                                              ,BT TELEPHONE PAYMENT CENTRE,BA0000273613,81.26,245719348
BIS,The Insolvency Service,01/03/2014,Telecoms,FINANCE AND COMMERCIAL                                                                              ,BT TELEPHONE PAYMENT CENTRE,BA0000273613,117.52,245719348
BIS,The Insolvency Service,01/03/2014,Telecoms,FINANCE AND COMMERCIAL                                                                              ,BT TELEPHONE PAYMENT CENTRE,BA0000273613,121.73,245719348
BIS,The Insolvency Service,01/03/2014,Telecoms,FINANCE AND COMMERCIAL                                                                              ,BT TELEPHONE PAYMENT CENTRE,BA0000273613,144.08,245719348
BIS,The Insolvency Service,01/03/2014,Telecoms,FINANCE AND COMMERCIAL                                                                              ,BT TELEPHONE PAYMENT CENTRE,BA0000273613,175.17,245719348
BIS,The Insolvency Service,01/03/2014,Telecoms,FINANCE AND COMMERCIAL                                                                              ,BT TELEPHONE PAYMENT CENTRE,BA0000273613,76.53,245719348
BIS,The Insolvency Service,01/03/2014,Telecoms,FINANCE AND COMMERCIAL                                                                              ,BT TELEPHONE PAYMENT CENTRE,BA0000273613,94.49,245719348
BIS,The Insolvency Service,01/03/2014,Telecoms,FINANCE AND COMMERCIAL                                                                              ,BT TELEPHONE PAYMENT CENTRE,BA0000273613,87.12,245719348
BIS,The Insolvency Service,01/03/2014,Telecoms,FINANCE AND COMMERCIAL                                                                              ,BT TELEPHONE PAYMENT CENTRE,BA0000273613,95.28,245719348
BIS,The Insolvency Service,01/03/2014,Telecoms,FINANCE AND COMMERCIAL                                                                              ,BT TELEPHONE PAYMENT CENTRE,BA0000273613,174.94,245719348
BIS,The Insolvency Service,01/03/2014,Telecoms,INFORMATION TECHNOLOGY                                                                              ,BT TELEPHONE PAYMENT CENTRE,BA0000273613,88.52,245719348
BIS,The Insolvency Service,11/03/2014,Telecoms,INFORMATION TECHNOLOGY                                                                              ,BT TELEPHONE PAYMENT CENTRE,BA0000272933,"4,619.79",245719348
BIS,The Insolvency Service,18/03/2014,Telecoms,OFFICIAL RECEIVER SERVICES                                                                          ,BT TELEPHONE PAYMENT CENTRE,BA0000273228,16.05,245719348
BIS,The Insolvency Service,20/03/2014,Telecoms,OFFICIAL RECEIVER SERVICES                                                                          ,BT TELEPHONE PAYMENT CENTRE,BA0000273377,56.27,245719348
BIS,The Insolvency Service,28/03/2014,Telecoms,OFFICIAL RECEIVER SERVICES                                                                          ,BT TELEPHONE PAYMENT CENTRE,BA0000273781,313.02,245719348
BIS,The Insolvency Service,28/03/2014,Telecoms,OFFICIAL RECEIVER SERVICES                                                                          ,BT TELEPHONE PAYMENT CENTRE,BA0000273787,131.68,245719348
BIS,The Insolvency Service,20/03/2014,Investigation and Enforcement Costs,INVESTIGATION & ENFORCEMENT SERVICES                                                                ,BTG GLOBAL RISK PARTNERS,BA0000273349,"1,051.00",880996072
BIS,The Insolvency Service,20/03/2014,Investigation and Enforcement Costs,INVESTIGATION & ENFORCEMENT SERVICES                                                                ,BURNESS PAULL & WILLIAMSONS SOLICITORS,BA0000273300,25.00,268398111
BIS,The Insolvency Service,20/03/2014,Investigation and Enforcement Costs,INVESTIGATION & ENFORCEMENT SERVICES                                                                ,BURNESS PAULL & WILLIAMSONS SOLICITORS,BA0000273300,"37,287.06",268398111
BIS,The Insolvency Service,20/03/2014,Investigation and Enforcement Costs,INVESTIGATION & ENFORCEMENT SERVICES                                                                ,BURNESS PAULL & WILLIAMSONS SOLICITORS,BA0000273300,"1,567.25",268398111
BIS,The Insolvency Service,20/03/2014,Investigation and Enforcement Costs,INVESTIGATION & ENFORCEMENT SERVICES                                                                ,BURNESS PAULL & WILLIAMSONS SOLICITORS,BA0000273300,"22,455.52",268398111
BIS,The Insolvency Service,20/03/2014,Investigation and Enforcement Costs,INVESTIGATION & ENFORCEMENT SERVICES                                                                ,BURNESS PAULL & WILLIAMSONS SOLICITORS,BA0000273300,"1,099.00",268398111
BIS,The Insolvency Service,20/03/2014,Investigation and Enforcement Costs,INVESTIGATION & ENFORCEMENT SERVICES                                                                ,BURNESS PAULL & WILLIAMSONS SOLICITORS,BA0000273300,"4,168.96",268398111
BIS,The Insolvency Service,28/03/2014,Investigation and Enforcement Costs,INVESTIGATION & ENFORCEMENT SERVICES                                                                ,BURNESS PAULL & WILLIAMSONS SOLICITORS,BA0000273747,"35,099.72",268398111
BIS,The Insolvency Service,28/03/2014,Investigation and Enforcement Costs,INVESTIGATION & ENFORCEMENT SERVICES                                                                ,BURNESS PAULL & WILLIAMSONS SOLICITORS,BA0000273747,734.50,268398111
BIS,The Insolvency Service,28/03/2014,Investigation and Enforcement Costs,INVESTIGATION & ENFORCEMENT SERVICES                                                                ,BURNESS PAULL & WILLIAMSONS SOLICITORS,BA0000273747,"17,422.95",268398111
BIS,The Insolvency Service,28/03/2014,Investigation and Enforcement Costs,INVESTIGATION & ENFORCEMENT SERVICES                                                                ,BURNESS PAULL & WILLIAMSONS SOLICITORS,BA0000273747,"1,565.34",268398111
BIS,The Insolvency Service,24/03/2014,Accommodation,ESTATES,C NICKERSON,BA0000273438,15.00,
BIS,The Insolvency Service,06/03/2014,Employee Related Costs,PEOPLE & CAPABILITY                                                                                 ,CAPITA BUSINESS SERVICES LTD,BA0000272825,574.00,618184140
BIS,The Insolvency Service,06/03/2014,Training Costs,PEOPLE & CAPABILITY                                                                                 ,CAPITA BUSINESS SERVICES LTD,BA0000272824,487.80,618184140
BIS,The Insolvency Service,06/03/2014,Training Costs,PEOPLE & CAPABILITY                                                                                 ,CAPITA BUSINESS SERVICES LTD,BA0000272817,"3,102.00",618184140
BIS,The Insolvency Service,06/03/2014,Training Costs,PEOPLE & CAPABILITY                                                                                 ,CAPITA BUSINESS SERVICES LTD,BA0000272818,"1,178.00",618184140
BIS,The Insolvency Service,06/03/2014,Training Costs,PEOPLE & CAPABILITY                                                                                 ,CAPITA BUSINESS SERVICES LTD,BA0000272829,293.00,618184140
BIS,The Insolvency Service,06/03/2014,Training Costs,PEOPLE & CAPABILITY                                                                                 ,CAPITA BUSINESS SERVICES LTD,BA0000272830,637.00,618184140
BIS,The Insolvency Service,06/03/2014,Training Costs,PEOPLE & CAPABILITY                                                                                 ,CAPITA BUSINESS SERVICES LTD,BA0000272831,76.00,618184140
BIS,The Insolvency Service,06/03/2014,Training Costs,PEOPLE & CAPABILITY                                                                                 ,CAPITA BUSINESS SERVICES LTD,BA0000272832,76.00,618184140
BIS,The Insolvency Service,06/03/2014,Training Costs,PEOPLE & CAPABILITY                                                                                 ,CAPITA BUSINESS SERVICES LTD,BA0000272833,134.00,618184140
BIS,The Insolvency Service,06/03/2014,Training Costs,"PLANNING, PERFORMANCE & PROJECTS                                                                    ",CAPITA BUSINESS SERVICES LTD,BA0000272826,170.00,618184140
BIS,The Insolvency Service,06/03/2014,Training Costs,"PLANNING, PERFORMANCE & PROJECTS                                                                    ",CAPITA BUSINESS SERVICES LTD,BA0000272827,170.00,618184140
BIS,The Insolvency Service,06/03/2014,Training Costs,"PLANNING, PERFORMANCE & PROJECTS                                                                    ",CAPITA BUSINESS SERVICES LTD,BA0000272828,170.00,618184140
BIS,The Insolvency Service,07/03/2014,Training Costs,PEOPLE & CAPABILITY                                                                                 ,CAPITA BUSINESS SERVICES LTD,BA0000272856,119.99,618184140
BIS,The Insolvency Service,13/03/2014,Employee Related Costs,PEOPLE & CAPABILITY                                                                                 ,CAPITA BUSINESS SERVICES LTD,BA0000273043,574.00,618184140
BIS,The Insolvency Service,13/03/2014,Employee Related Costs,PEOPLE & CAPABILITY                                                                                 ,CAPITA BUSINESS SERVICES LTD,BA0000273045,574.00,618184140
BIS,The Insolvency Service,13/03/2014,Employee Related Costs,PEOPLE & CAPABILITY                                                                                 ,CAPITA BUSINESS SERVICES LTD,BA0000273046,574.00,618184140
BIS,The Insolvency Service,13/03/2014,Employee Related Costs,PEOPLE & CAPABILITY                                                                                 ,CAPITA BUSINESS SERVICES LTD,BA0000273048,574.00,618184140
BIS,The Insolvency Service,13/03/2014,Training Costs,PEOPLE & CAPABILITY                                                                                 ,CAPITA BUSINESS SERVICES LTD,BA0000273044,197.00,618184140
BIS,The Insolvency Service,13/03/2014,Training Costs,PEOPLE & CAPABILITY                                                                                 ,CAPITA BUSINESS SERVICES LTD,BA0000273012,"1,033.00",618184140
BIS,The Insolvency Service,13/03/2014,Training Costs,PEOPLE & CAPABILITY                                                                                 ,CAPITA BUSINESS SERVICES LTD,BA0000273013,"1,925.00",618184140
BIS,The Insolvency Service,13/03/2014,Training Costs,PEOPLE & CAPABILITY                                                                                 ,CAPITA BUSINESS SERVICES LTD,BA0000273047,125.00,618184140
BIS,The Insolvency Service,18/03/2014,Employee Related Costs,PEOPLE & CAPABILITY                                                                                 ,CAPITA BUSINESS SERVICES LTD,BA0000273250,172.20,618184140
BIS,The Insolvency Service,18/03/2014,Training Costs,PEOPLE & CAPABILITY                                                                                 ,CAPITA BUSINESS SERVICES LTD,BA0000273249,135.00,618184140
BIS,The Insolvency Service,18/03/2014,Training Costs,PEOPLE & CAPABILITY                                                                                 ,CAPITA BUSINESS SERVICES LTD,BA0000273251,135.00,618184140
BIS,The Insolvency Service,18/03/2014,Training Costs,PEOPLE & CAPABILITY                                                                                 ,CAPITA BUSINESS SERVICES LTD,BA0000273252,135.00,618184140
BIS,The Insolvency Service,18/03/2014,Training Costs,PEOPLE & CAPABILITY                                                                                 ,CAPITA BUSINESS SERVICES LTD,BA0000273254,135.00,618184140
BIS,The Insolvency Service,18/03/2014,Training Costs,PEOPLE & CAPABILITY                                                                                 ,CAPITA BUSINESS SERVICES LTD,BA0000273210,"1,395.00",618184140
BIS,The Insolvency Service,24/03/2014,Training Costs,PEOPLE & CAPABILITY                                                                                 ,CAPITA BUSINESS SERVICES LTD,BA0000273419,661.00,618184140
BIS,The Insolvency Service,25/03/2014,Training Costs,PEOPLE & CAPABILITY                                                                                 ,CAPITA BUSINESS SERVICES LTD,BA0000273547,134.00,618184140
BIS,The Insolvency Service,25/03/2014,Training Costs,PEOPLE & CAPABILITY                                                                                 ,CAPITA BUSINESS SERVICES LTD,BA0000273574,"3,102.00",618184140
BIS,The Insolvency Service,25/03/2014,Training Costs,PEOPLE & CAPABILITY                                                                                 ,CAPITA BUSINESS SERVICES LTD,BA0000273575,"1,219.51",618184140
BIS,The Insolvency Service,25/03/2014,Training Costs,PEOPLE & CAPABILITY                                                                                 ,CAPITA BUSINESS SERVICES LTD,BA0000273589,"3,102.00",618184140
BIS,The Insolvency Service,25/03/2014,Training Costs,PEOPLE & CAPABILITY                                                                                 ,CAPITA BUSINESS SERVICES LTD,BA0000273578,"3,102.00",618184140
BIS,The Insolvency Service,25/03/2014,Training Costs,PEOPLE & CAPABILITY                                                                                 ,CAPITA BUSINESS SERVICES LTD,BA0000273550,134.00,618184140
BIS,The Insolvency Service,25/03/2014,Training Costs,PEOPLE & CAPABILITY                                                                                 ,CAPITA BUSINESS SERVICES LTD,BA0000273535,"3,353.00",618184140
BIS,The Insolvency Service,25/03/2014,Training Costs,PEOPLE & CAPABILITY                                                                                 ,CAPITA BUSINESS SERVICES LTD,BA0000273552,189.00,618184140
BIS,The Insolvency Service,25/03/2014,Training Costs,"PLANNING, PERFORMANCE & PROJECTS                                                                    ",CAPITA BUSINESS SERVICES LTD,BA0000273548,170.00,618184140
BIS,The Insolvency Service,26/03/2014,Training Costs,PEOPLE & CAPABILITY                                                                                 ,CAPITA BUSINESS SERVICES LTD,BA0000273631,550.00,618184140
BIS,The Insolvency Service,27/03/2014,Training Costs,"PLANNING, PERFORMANCE & PROJECTS                                                                    ",CAPITA BUSINESS SERVICES LTD,BA0000273678,"77,160.00",618184140
BIS,The Insolvency Service,31/03/2014,Training Costs,PEOPLE & CAPABILITY                                                                                 ,CAPITA BUSINESS SERVICES LTD,BA0000273851,"3,102.00",618184140
BIS,The Insolvency Service,31/03/2014,Training Costs,PEOPLE & CAPABILITY                                                                                 ,CAPITA BUSINESS SERVICES LTD,BA0000273834,125.00,618184140
BIS,The Insolvency Service,31/03/2014,Training Costs,PEOPLE & CAPABILITY                                                                                 ,CAPITA BUSINESS SERVICES LTD,BA0000273835,482.00,618184140
BIS,The Insolvency Service,31/03/2014,Training Costs,PEOPLE & CAPABILITY                                                                                 ,CAPITA BUSINESS SERVICES LTD,BA0000273852,"2,317.07",618184140
BIS,The Insolvency Service,31/03/2014,Training Costs,PEOPLE & CAPABILITY                                                                                 ,CAPITA BUSINESS SERVICES LTD,BA0000273853,"1,611.00",618184140
BIS,The Insolvency Service,31/03/2014,Training Costs,PEOPLE & CAPABILITY                                                                                 ,CAPITA BUSINESS SERVICES LTD,BA0000273854,"2,317.07",618184140
BIS,The Insolvency Service,31/03/2014,Training Costs,PEOPLE & CAPABILITY                                                                                 ,CAPITA BUSINESS SERVICES LTD,BA0000273856,"3,353.00",618184140
BIS,The Insolvency Service,31/03/2014,Training Costs,PEOPLE & CAPABILITY                                                                                 ,CAPITA BUSINESS SERVICES LTD,BA0000273836,135.00,618184140
BIS,The Insolvency Service,31/03/2014,Training Costs,PEOPLE & CAPABILITY                                                                                 ,CAPITA BUSINESS SERVICES LTD,BA0000273846,135.00,618184140
BIS,The Insolvency Service,04/03/2014,Employee Related Costs,PEOPLE & CAPABILITY                                                                                 ,CAPITA HEALTH SOLUTIONS,BA0000272676,143.00,867412506
BIS,The Insolvency Service,07/03/2014,Agency Workers,"PLANNING, PERFORMANCE & PROJECTS                                                                    ",CAPITA RESOURCING LTD,BA0000272846,"2,072.52",618184140
BIS,The Insolvency Service,11/03/2014,Agency Workers,"PLANNING, PERFORMANCE & PROJECTS                                                                    ",CAPITA RESOURCING LTD,BA0000272909,"3,900.00",618184140
BIS,The Insolvency Service,11/03/2014,Agency Workers,"PLANNING, PERFORMANCE & PROJECTS                                                                    ",CAPITA RESOURCING LTD,BA0000272969,"2,072.52",618184140
BIS,The Insolvency Service,14/03/2014,Agency Workers,"PLANNING, PERFORMANCE & PROJECTS                                                                    ",CAPITA RESOURCING LTD,BA0000273153,"2,072.52",618184140
BIS,The Insolvency Service,20/03/2014,Agency Workers,Change and Workplace Services,CAPITA RESOURCING LTD,BA0000273354,"2,072.52",618184140
BIS,The Insolvency Service,20/03/2014,Agency Workers,"PLANNING, PERFORMANCE & PROJECTS                                                                    ",CAPITA RESOURCING LTD,BA0000273355,"3,900.00",618184140
BIS,The Insolvency Service,24/03/2014,Computer and IT Systems,INFORMATION TECHNOLOGY                                                                              ,CAPITA RESOURCING LTD,BA0000273464,"2,694.30",618184140
BIS,The Insolvency Service,27/03/2014,Computer and IT Systems,INFORMATION TECHNOLOGY                                                                              ,CAPITA RESOURCING LTD,BA0000273723,"2,694.30",618184140
BIS,The Insolvency Service,27/03/2014,Computer and IT Systems,INFORMATION TECHNOLOGY                                                                              ,CAPITA RESOURCING LTD,BA0000273724,"2,694.30",618184140
BIS,The Insolvency Service,28/03/2014,Agency Workers,"PLANNING, PERFORMANCE & PROJECTS                                                                    ",CAPITA RESOURCING LTD,BA0000273735,"7,800.00",618184140
BIS,The Insolvency Service,28/03/2014,Agency Workers,"PLANNING, PERFORMANCE & PROJECTS                                                                    ",CAPITA RESOURCING LTD,BA0000273740,"2,072.52",618184140
BIS,The Insolvency Service,14/03/2014,Employee Related Costs,PEOPLE & CAPABILITY                                                                                 ,CARE FIRST,BA0000273147,"1,551.42",
BIS,The Insolvency Service,04/03/2014,Accommodation,ESTATES,CARILLION SERVICE SOLUTIONS,BA0000272693,"161,977.50",894545868
BIS,The Insolvency Service,04/03/2014,Accommodation,ESTATES,CARILLION SERVICES,BA0000272692,"34,872.50",894545868
BIS,The Insolvency Service,04/03/2014,Accommodation,ESTATES,CARILLION SERVICES,BA0000272692,"5,660.39",894545868
BIS,The Insolvency Service,13/03/2014,Employee Related Costs,INVESTIGATION & ENFORCEMENT SERVICES                                                                ,CARTUS FUNDING LIMITED,BA0000273061,95.08,768489458
BIS,The Insolvency Service,13/03/2014,Employee Related Costs,OFFICIAL RECEIVER SERVICES                                                                          ,CARTUS FUNDING LIMITED,BA0000273076,"1,119.14",768489458
BIS,The Insolvency Service,25/03/2014,Employee Related Costs,EXTERNAL AFFAIRS                                                                                    ,CARTUS FUNDING LIMITED,BA0000273597,"2,738.31",768489458
BIS,The Insolvency Service,25/03/2014,Employee Related Costs,OFFICIAL RECEIVER SERVICES                                                                          ,CARTUS FUNDING LIMITED,BA0000273585,260.95,768489458
BIS,The Insolvency Service,26/03/2014,Accommodation,ESTATES,CBRE - PROPERTY AND ASSET MANAGEMENT,BA0000273663,"51,900.00",
BIS,The Insolvency Service,26/03/2014,Accommodation,ESTATES,CBRE - PROPERTY AND ASSET MANAGEMENT,BA0000273663,"10,979.00",
BIS,The Insolvency Service,04/03/2014,Accommodation,ESTATES,CBRE LIMITED,BA0000272687,"4,858.07",
BIS,The Insolvency Service,07/03/2014,Accommodation,ESTATES,CBRE LIMITED,BA0000272871,"164,880.00",
BIS,The Insolvency Service,07/03/2014,Accommodation,ESTATES,CBRE LIMITED,BA0000272872,"164,512.50",
BIS,The Insolvency Service,07/03/2014,Accommodation,ESTATES,CBRE LIMITED,BA0000272866,"-17,686.12",
BIS,The Insolvency Service,07/03/2014,Accommodation,ESTATES,CBRE LIMITED,BA0000272867,"-7,135.70",
BIS,The Insolvency Service,07/03/2014,Accommodation,ESTATES,CBRE LIMITED,BA0000272868,"-7,124.34",
BIS,The Insolvency Service,07/03/2014,Accommodation,ESTATES,CBRE LIMITED,BA0000272869,"-17,658.36",
BIS,The Insolvency Service,07/03/2014,Accommodation,ESTATES,CBRE LIMITED,BA0000272871,"18,671.18",
BIS,The Insolvency Service,07/03/2014,Accommodation,ESTATES,CBRE LIMITED,BA0000272872,"18,641.91",
BIS,The Insolvency Service,07/03/2014,Accommodation,ESTATES,CBRE LIMITED,BA0000272809,"-3,475.11",
BIS,The Insolvency Service,07/03/2014,Accommodation,ESTATES,CBRE LIMITED,BA0000272858,"-3,720.04",
BIS,The Insolvency Service,07/03/2014,Accommodation,ESTATES,CBRE LIMITED,BA0000272870,"4,676.71",
BIS,The Insolvency Service,20/03/2014,Accommodation,ESTATES,CBRE Ltd,BA0000273371,782.86,
BIS,The Insolvency Service,25/03/2014,Accommodation,ESTATES,CBRE Ltd,BA0000273553,781.28,
BIS,The Insolvency Service,07/03/2014,Accommodation,ESTATES,CBRE RICHARD ELLIS CBRE LTD,BA0000272860,"58,352.86",
BIS,The Insolvency Service,07/03/2014,Accommodation,ESTATES,CBRE RICHARD ELLIS CBRE LTD,BA0000272860,"19,826.25",
BIS,The Insolvency Service,18/03/2014,Accommodation,ESTATES,CBRE RICHARD ELLIS CBRE LTD,BA0000273187,"12,090.00",
BIS,The Insolvency Service,18/03/2014,Accommodation,ESTATES,CBRE RICHARD ELLIS CBRE LTD,BA0000273188,"11,700.00",
BIS,The Insolvency Service,18/03/2014,Accommodation,ESTATES,CBRE RICHARD ELLIS CBRE LTD,BA0000273202,"1,860.21",
BIS,The Insolvency Service,18/03/2014,Accommodation,ESTATES,CBRE RICHARD ELLIS CBRE LTD,BA0000273203,"20,482.92",
BIS,The Insolvency Service,28/03/2014,Accommodation,ESTATES,CBRE RICHARD ELLIS CBRE LTD,BA0000273788,461.92,
BIS,The Insolvency Service,20/03/2014,Accommodation,ESTATES,CGM LANDSCAPES (COMPLETE GROUNDS MAINTENANCE LTD),BA0000273373,120.00,943560027
BIS,The Insolvency Service,27/03/2014,Accommodation,ESTATES,CGM LANDSCAPES (COMPLETE GROUNDS MAINTENANCE LTD),BA0000273714,102.00,943560027
BIS,The Insolvency Service,25/03/2014,Insolvency Case Related Costs,BUSINESS SERVICES DIRECTORATE                                                                       ,CHRISTIANS AGAINST POVERTY,BA0000273573,"5,550.00",
BIS,The Insolvency Service,18/03/2014,Accommodation,FINANCE AND COMMERCIAL,CHURCH HOUSE CONFERENCE CENTRE LTD,BA0000273215,"1,325.28",
BIS,The Insolvency Service,18/03/2014,Conferences,"PLANNING, PERFORMANCE & PROJECTS                                                                    ",CHURCH HOUSE CONFERENCE CENTRE LTD,BA0000273192,681.84,
BIS,The Insolvency Service,24/03/2014,Conferences,"PLANNING, PERFORMANCE & PROJECTS",CHURCH HOUSE CONFERENCE CENTRE LTD,BA0000273456,"1,433.64",
BIS,The Insolvency Service,28/03/2014,Conferences,"PLANNING, PERFORMANCE & PROJECTS                                                                    ",CHURCH HOUSE CONFERENCE CENTRE LTD,BA0000273774,722.76,
BIS,The Insolvency Service,11/03/2014,Conferences,PEOPLE & CAPABILITY                                                                                 ,CITY OF WESTMINSTER                                         ,BA0000272960,156.40,239291642
BIS,The Insolvency Service,11/03/2014,Conferences,PEOPLE & CAPABILITY                                                                                 ,CITY OF WESTMINSTER                                         ,BA0000272960,355.00,239291642
BIS,The Insolvency Service,31/03/2014,Conferences,INVESTIGATION & ENFORCEMENT SERVICES                                                                ,CITY OF WESTMINSTER                                         ,BA0000273841,753.40,239291642
BIS,The Insolvency Service,06/03/2014,Postage,INFORMATION TECHNOLOGY                                                                              ,CITY SPRINT UK LTD,BA0000272794,208.37,
BIS,The Insolvency Service,06/03/2014,Postage,INFORMATION TECHNOLOGY                                                                              ,CITY SPRINT UK LTD,BA0000272795,131.52,
BIS,The Insolvency Service,06/03/2014,Postage,OFFICIAL RECEIVER SERVICES                                                                          ,CITY SPRINT UK LTD,BA0000272796,15.72,
BIS,The Insolvency Service,06/03/2014,Postage,OFFICIAL RECEIVER SERVICES                                                                          ,CITY SPRINT UK LTD,BA0000272797,90.08,
BIS,The Insolvency Service,11/03/2014,Postage,CUSTOMER AND COMMUNICATIONS                                                                         ,CITY SPRINT UK LTD,BA0000272959,19.20,
BIS,The Insolvency Service,13/03/2014,Postage,CUSTOMER AND COMMUNICATIONS                                                                         ,CITY SPRINT UK LTD,BA0000273041,48.00,
BIS,The Insolvency Service,13/03/2014,Postage,OFFICIAL RECEIVER SERVICES                                                                          ,CITY SPRINT UK LTD,BA0000273052,108.91,
BIS,The Insolvency Service,13/03/2014,Postage,OFFICIAL RECEIVER SERVICES                                                                          ,CITY SPRINT UK LTD,BA0000273053,98.93,
BIS,The Insolvency Service,18/03/2014,Postage,INFORMATION TECHNOLOGY                                                                              ,CITY SPRINT UK LTD,BA0000273260,28.80,
BIS,The Insolvency Service,20/03/2014,Postage,INFORMATION TECHNOLOGY                                                                              ,CITY SPRINT UK LTD,BA0000273365,244.48,
BIS,The Insolvency Service,27/03/2014,Postage,INFORMATION TECHNOLOGY                                                                              ,CITY SPRINT UK LTD,BA0000273712,53.03,
BIS,The Insolvency Service,28/03/2014,Postage,OFFICIAL RECEIVER SERVICES                                                                          ,CITY SPRINT UK LTD,BA0000273776,59.71,
BIS,The Insolvency Service,28/03/2014,Postage,OFFICIAL RECEIVER SERVICES                                                                          ,CITY SPRINT UK LTD,BA0000273779,499.87,
BIS,The Insolvency Service,14/03/2014,Accounting and Banking,FINANCE AND COMMERCIAL,CLARANET LTD,BA0000273097,25.33,
BIS,The Insolvency Service,20/03/2014,Investigation and Enforcement Costs,INVESTIGATION & ENFORCEMENT SERVICES                                                                ,CLARKE WILLMOTT SOLICITORS,BA0000273313,501.43,129913060
BIS,The Insolvency Service,31/03/2014,Investigation and Enforcement Costs,INVESTIGATION & ENFORCEMENT SERVICES                                                                ,CLARKE WILLMOTT SOLICITORS,BA0000273862,456.66,129913060
BIS,The Insolvency Service,13/03/2014,Telecoms,BUSINESS SERVICES DIRECTORATE                                                                       ,CLOUDXL,BA0000273016,"1,897.63",897386841
BIS,The Insolvency Service,04/03/2014,Insolvency Case Related Costs,BUSINESS SERVICES DIRECTORATE                                                                       ,COMPANIES HOUSE,BA0000272662,209.00,GD255
BIS,The Insolvency Service,07/03/2014,Insolvency Case Related Costs,OFFICIAL RECEIVER SERVICES                                                                          ,COMPANIES HOUSE,BA0000272854,123.00,GD255
BIS,The Insolvency Service,07/03/2014,Insolvency Case Related Costs,OFFICIAL RECEIVER SERVICES                                                                          ,COMPANIES HOUSE,BA0000272855,208.00,GD255
BIS,The Insolvency Service,13/03/2014,Insolvency Case Related Costs,OFFICIAL RECEIVER SERVICES                                                                          ,COMPANIES HOUSE,BA0000273055,9.00,GD255
BIS,The Insolvency Service,13/03/2014,Insolvency Case Related Costs,OFFICIAL RECEIVER SERVICES                                                                          ,COMPANIES HOUSE,BA0000273058,106.00,GD255
BIS,The Insolvency Service,13/03/2014,Insolvency Case Related Costs,OFFICIAL RECEIVER SERVICES                                                                          ,COMPANIES HOUSE,BA0000273060,39.00,GD255
BIS,The Insolvency Service,13/03/2014,Insolvency Case Related Costs,OFFICIAL RECEIVER SERVICES                                                                          ,COMPANIES HOUSE,BA0000273062,82.00,GD255
BIS,The Insolvency Service,13/03/2014,Insolvency Case Related Costs,OFFICIAL RECEIVER SERVICES                                                                          ,COMPANIES HOUSE,BA0000273063,98.00,GD255
BIS,The Insolvency Service,14/03/2014,Insolvency Case Related Costs,INVESTIGATION & ENFORCEMENT SERVICES                                                                ,COMPANIES HOUSE,BA0000273128,855.00,GD255
BIS,The Insolvency Service,14/03/2014,Insolvency Case Related Costs,INVESTIGATION & ENFORCEMENT SERVICES                                                                ,COMPANIES HOUSE,BA0000273129,935.00,GD255
BIS,The Insolvency Service,14/03/2014,Insolvency Case Related Costs,INVESTIGATION & ENFORCEMENT SERVICES                                                                ,COMPANIES HOUSE,BA0000273130,-4.00,GD255
BIS,The Insolvency Service,14/03/2014,Insolvency Case Related Costs,INVESTIGATION & ENFORCEMENT SERVICES                                                                ,COMPANIES HOUSE,BA0000273131,4.00,GD255
BIS,The Insolvency Service,14/03/2014,Insolvency Case Related Costs,INVESTIGATION & ENFORCEMENT SERVICES                                                                ,COMPANIES HOUSE,BA0000273159,793.00,GD255
BIS,The Insolvency Service,14/03/2014,Insolvency Case Related Costs,INVESTIGATION & ENFORCEMENT SERVICES                                                                ,COMPANIES HOUSE,BA0000273160,24.00,GD255
BIS,The Insolvency Service,14/03/2014,Insolvency Case Related Costs,OFFICIAL RECEIVER SERVICES                                                                          ,COMPANIES HOUSE,BA0000273132,48.00,GD255
BIS,The Insolvency Service,14/03/2014,Insolvency Case Related Costs,OFFICIAL RECEIVER SERVICES                                                                          ,COMPANIES HOUSE,BA0000273155,43.00,GD255
BIS,The Insolvency Service,14/03/2014,Insolvency Case Related Costs,OFFICIAL RECEIVER SERVICES                                                                          ,COMPANIES HOUSE,BA0000273157,87.00,GD255
BIS,The Insolvency Service,18/03/2014,Insolvency Case Related Costs,OFFICIAL RECEIVER SERVICES                                                                          ,COMPANIES HOUSE,BA0000273222,72.00,GD255
BIS,The Insolvency Service,18/03/2014,Insolvency Case Related Costs,OFFICIAL RECEIVER SERVICES                                                                          ,COMPANIES HOUSE,BA0000273225,58.00,GD255
BIS,The Insolvency Service,18/03/2014,Insolvency Case Related Costs,OFFICIAL RECEIVER SERVICES                                                                          ,COMPANIES HOUSE,BA0000273229,30.00,GD255
BIS,The Insolvency Service,18/03/2014,Insolvency Case Related Costs,OFFICIAL RECEIVER SERVICES                                                                          ,COMPANIES HOUSE,BA0000273256,87.00,GD255
BIS,The Insolvency Service,18/03/2014,Insolvency Case Related Costs,OFFICIAL RECEIVER SERVICES                                                                          ,COMPANIES HOUSE,BA0000273268,27.00,GD255
BIS,The Insolvency Service,20/03/2014,Insolvency Case Related Costs,OFFICIAL RECEIVER SERVICES                                                                          ,COMPANIES HOUSE,BA0000273363,61.00,GD255
BIS,The Insolvency Service,20/03/2014,Insolvency Case Related Costs,OFFICIAL RECEIVER SERVICES                                                                          ,COMPANIES HOUSE,BA0000273314,141.00,GD255
BIS,The Insolvency Service,20/03/2014,Insolvency Case Related Costs,OFFICIAL RECEIVER SERVICES                                                                          ,COMPANIES HOUSE,BA0000273376,248.00,GD255
BIS,The Insolvency Service,20/03/2014,Insolvency Case Related Costs,OFFICIAL RECEIVER SERVICES                                                                          ,COMPANIES HOUSE,BA0000273379,4.00,GD255
BIS,The Insolvency Service,24/03/2014,Accommodation,ESTATES,COMPANIES HOUSE,BA0000273495,"16,856.10",GD255
BIS,The Insolvency Service,24/03/2014,Accommodation,ESTATES,COMPANIES HOUSE,BA0000273495,"6,066.54",GD255
BIS,The Insolvency Service,24/03/2014,Accommodation,ESTATES,COMPANIES HOUSE,BA0000273495,"14,081.07",GD255
BIS,The Insolvency Service,24/03/2014,Telecoms,OFFICIAL RECEIVER SERVICES                                                                          ,COMPANIES HOUSE,BA0000273402,528.66,GD255
BIS,The Insolvency Service,24/03/2014,Insolvency Case Related Costs,OFFICIAL RECEIVER SERVICES                                                                          ,COMPANIES HOUSE,BA0000273482,108.00,GD255
BIS,The Insolvency Service,24/03/2014,Insolvency Case Related Costs,OFFICIAL RECEIVER SERVICES                                                                          ,COMPANIES HOUSE,BA0000273437,3.00,GD255
BIS,The Insolvency Service,24/03/2014,Insolvency Case Related Costs,OFFICIAL RECEIVER SERVICES                                                                          ,COMPANIES HOUSE,BA0000273398,11.00,GD255
BIS,The Insolvency Service,24/03/2014,Insolvency Case Related Costs,OFFICIAL RECEIVER SERVICES                                                                          ,COMPANIES HOUSE,BA0000273399,38.00,GD255
BIS,The Insolvency Service,24/03/2014,Insolvency Case Related Costs,OFFICIAL RECEIVER SERVICES                                                                          ,COMPANIES HOUSE,BA0000273403,57.00,GD255
BIS,The Insolvency Service,24/03/2014,Insolvency Case Related Costs,OFFICIAL RECEIVER SERVICES                                                                          ,COMPANIES HOUSE,BA0000273477,90.00,GD255
BIS,The Insolvency Service,24/03/2014,Insolvency Case Related Costs,OFFICIAL RECEIVER SERVICES                                                                          ,COMPANIES HOUSE,BA0000273481,92.00,GD255
BIS,The Insolvency Service,25/03/2014,Insolvency Case Related Costs,BUSINESS SERVICES DIRECTORATE                                                                       ,COMPANIES HOUSE,BA0000273557,232.00,GD255
BIS,The Insolvency Service,25/03/2014,Insolvency Case Related Costs,OFFICIAL RECEIVER SERVICES                                                                          ,COMPANIES HOUSE,BA0000273546,40.00,GD255
BIS,The Insolvency Service,25/03/2014,Insolvency Case Related Costs,OFFICIAL RECEIVER SERVICES                                                                          ,COMPANIES HOUSE,BA0000273586,130.00,GD255
BIS,The Insolvency Service,21/03/2014,Insolvency Case Related Costs,                                                                                                    ,COMPANIES HOUSE                                             ,BA0000273375,81.00,
BIS,The Insolvency Service,18/03/2014,Computer and IT Systems,INFORMATION TECHNOLOGY                                                                              ,COMPUTACENTER (UK) LIMITED,BA0000273208,"2,279.52",490334648
BIS,The Insolvency Service,26/03/2014,Computer and IT Systems,INFORMATION TECHNOLOGY                                                                              ,COMPUTACENTER (UK) LIMITED,BA0000273649,"10,382.63",490334648
BIS,The Insolvency Service,31/03/2014,Computer and IT Systems,INFORMATION TECHNOLOGY                                                                              ,COMPUTACENTER (UK) LIMITED,BA0000273857,"10,437.03",490334648
BIS,The Insolvency Service,21/03/2014,Accounting and Banking,BUSINESS SERVICES DIRECTORATE                                                                       ,COMPUTERSHARE INVESTOR SERVICES PLC,BA0000273397,18.50,
BIS,The Insolvency Service,18/03/2014,Office Supplies and Services,"PLANNING, PERFORMANCE & PROJECTS                                                                    ",CONSUMER CREDIT COUNSELLING SERVICE,BA0000273221,52.25,
BIS,The Insolvency Service,18/03/2014,Accommodation,ESTATES,CORONA ENERGY RETAIL 4 LIMITED,BA0000273220,243.84,714232961
BIS,The Insolvency Service,18/03/2014,Accommodation,ESTATES,CORONA ENERGY RETAIL 4 LIMITED,BA0000273223,56.10,714232961
BIS,The Insolvency Service,18/03/2014,Accommodation,ESTATES,CORONA ENERGY RETAIL 4 LIMITED,BA0000273269,230.59,714232961
BIS,The Insolvency Service,18/03/2014,Accommodation,ESTATES,CORONA ENERGY RETAIL 4 LIMITED,BA0000273270,226.38,714232961
BIS,The Insolvency Service,20/03/2014,Accommodation,ESTATES,CORONA ENERGY RETAIL 4 LIMITED,BA0000273372,93.31,714232961
BIS,The Insolvency Service,27/03/2014,Accommodation,ESTATES,CORONA ENERGY RETAIL 4 LIMITED,BA0000273713,470.00,714232961
BIS,The Insolvency Service,01/03/2014,Office Machinery,INVESTIGATION & ENFORCEMENT SERVICES                                                                ,CURRYS,BA0000273613,49.99,
BIS,The Insolvency Service,04/03/2014,Accommodation,ESTATES,DACRE PROPERTY HOLDINGS,BA0000272686,"22,500.00",595384491
BIS,The Insolvency Service,13/03/2014,Computer and IT Systems,INFORMATION TECHNOLOGY                                                                              ,DATA DUPLICATION LTD,BA0000273072,"11,448.00",578500228
BIS,The Insolvency Service,11/03/2014,Accommodation,ESTATES,DAVID NEALE SURVEYORS LTD,BA0000272965,"12,684.00",
BIS,The Insolvency Service,11/03/2014,Accommodation,ESTATES,DAVID NEALE SURVEYORS LTD,BA0000272964,"8,032.34",
BIS,The Insolvency Service,11/03/2014,Accommodation,ESTATES,DAVID NEALE SURVEYORS LTD,BA0000272963,"2,774.22",
BIS,The Insolvency Service,27/03/2014,Insolvency Case Related Costs,BUSINESS SERVICES DIRECTORATE                                                                       ,DEBT RELEASE DIRECT,BA0000273539,510.00,
BIS,The Insolvency Service,10/03/2014,Accommodation,ESTATES,DEPARTMENT FOR WORK & PENSIONS,BA0000272919,"1,004.77",888815554
BIS,The Insolvency Service,17/03/2014,Accommodation,ESTATES,DEPARTMENT FOR WORK & PENSIONS,BA0000272952,"6,143.93",888815554
BIS,The Insolvency Service,17/03/2014,Accommodation,ESTATES,DEPARTMENT FOR WORK & PENSIONS,BA0000272952,38.40,888815554
BIS,The Insolvency Service,01/03/2014,Travel and Subsistence,"PLANNING, PERFORMANCE & PROJECTS                                                                    ",DRAKE CIRCUS LP,BA0000273613,12.00,
BIS,The Insolvency Service,18/03/2014,Insolvency Case Related Costs,INVESTIGATION & ENFORCEMENT SERVICES                                                                ,DUN AND BRADSTREET LTD,BA0000273185,"2,400.00",505189158
BIS,The Insolvency Service,14/03/2014,Postage,FACILITIES                                                                                          ,DX NETWORK SERVICES LTD,BA0000273149,168.52,849741385
BIS,The Insolvency Service,14/03/2014,Postage,INFORMATION TECHNOLOGY                                                                              ,DX NETWORK SERVICES LTD,BA0000273148,375.00,849741385
BIS,The Insolvency Service,14/03/2014,Postage,INFORMATION TECHNOLOGY                                                                              ,DX NETWORK SERVICES LTD,BA0000273148,750.00,849741385
BIS,The Insolvency Service,14/03/2014,Postage,INFORMATION TECHNOLOGY                                                                              ,DX NETWORK SERVICES LTD,BA0000273148,937.50,849741385
BIS,The Insolvency Service,14/03/2014,Postage,INFORMATION TECHNOLOGY                                                                              ,DX NETWORK SERVICES LTD,BA0000273149,401.61,849741385
BIS,The Insolvency Service,14/03/2014,Postage,OFFICIAL RECEIVER SERVICES                                                                          ,DX NETWORK SERVICES LTD,BA0000273148,85.00,849741385
BIS,The Insolvency Service,14/03/2014,Postage,OFFICIAL RECEIVER SERVICES                                                                          ,DX NETWORK SERVICES LTD,BA0000273148,375.00,849741385
BIS,The Insolvency Service,14/03/2014,Postage,OFFICIAL RECEIVER SERVICES                                                                          ,DX NETWORK SERVICES LTD,BA0000273149,6.41,849741385
BIS,The Insolvency Service,14/03/2014,Postage,OFFICIAL RECEIVER SERVICES                                                                          ,DX NETWORK SERVICES LTD,BA0000273149,32.34,849741385
BIS,The Insolvency Service,14/03/2014,Postage,OFFICIAL RECEIVER SERVICES                                                                          ,DX NETWORK SERVICES LTD,BA0000273149,50.21,849741385
BIS,The Insolvency Service,14/03/2014,Postage,OFFICIAL RECEIVER SERVICES                                                                          ,DX NETWORK SERVICES LTD,BA0000273149,50.48,849741385
BIS,The Insolvency Service,14/03/2014,Postage,OFFICIAL RECEIVER SERVICES                                                                          ,DX NETWORK SERVICES LTD,BA0000273149,57.67,849741385
BIS,The Insolvency Service,14/03/2014,Postage,OFFICIAL RECEIVER SERVICES                                                                          ,DX NETWORK SERVICES LTD,BA0000273149,122.95,849741385
BIS,The Insolvency Service,14/03/2014,Postage,OFFICIAL RECEIVER SERVICES                                                                          ,DX NETWORK SERVICES LTD,BA0000273149,134.46,849741385
BIS,The Insolvency Service,14/03/2014,Postage,OFFICIAL RECEIVER SERVICES                                                                          ,DX NETWORK SERVICES LTD,BA0000273149,136.78,849741385
BIS,The Insolvency Service,14/03/2014,Postage,OFFICIAL RECEIVER SERVICES                                                                          ,DX NETWORK SERVICES LTD,BA0000273149,139.22,849741385
BIS,The Insolvency Service,14/03/2014,Postage,OFFICIAL RECEIVER SERVICES                                                                          ,DX NETWORK SERVICES LTD,BA0000273149,139.73,849741385
BIS,The Insolvency Service,14/03/2014,Postage,OFFICIAL RECEIVER SERVICES                                                                          ,DX NETWORK SERVICES LTD,BA0000273149,146.12,849741385
BIS,The Insolvency Service,14/03/2014,Postage,OFFICIAL RECEIVER SERVICES                                                                          ,DX NETWORK SERVICES LTD,BA0000273149,164.05,849741385
BIS,The Insolvency Service,14/03/2014,Postage,OFFICIAL RECEIVER SERVICES                                                                          ,DX NETWORK SERVICES LTD,BA0000273149,164.10,849741385
BIS,The Insolvency Service,14/03/2014,Postage,OFFICIAL RECEIVER SERVICES                                                                          ,DX NETWORK SERVICES LTD,BA0000273149,170.69,849741385
BIS,The Insolvency Service,14/03/2014,Postage,OFFICIAL RECEIVER SERVICES                                                                          ,DX NETWORK SERVICES LTD,BA0000273149,177.58,849741385
BIS,The Insolvency Service,14/03/2014,Postage,OFFICIAL RECEIVER SERVICES                                                                          ,DX NETWORK SERVICES LTD,BA0000273149,178.48,849741385
BIS,The Insolvency Service,14/03/2014,Postage,OFFICIAL RECEIVER SERVICES                                                                          ,DX NETWORK SERVICES LTD,BA0000273149,188.19,849741385
BIS,The Insolvency Service,14/03/2014,Postage,OFFICIAL RECEIVER SERVICES                                                                          ,DX NETWORK SERVICES LTD,BA0000273149,190.50,849741385
BIS,The Insolvency Service,14/03/2014,Postage,OFFICIAL RECEIVER SERVICES                                                                          ,DX NETWORK SERVICES LTD,BA0000273149,191.88,849741385
BIS,The Insolvency Service,14/03/2014,Postage,OFFICIAL RECEIVER SERVICES                                                                          ,DX NETWORK SERVICES LTD,BA0000273149,234.74,849741385
BIS,The Insolvency Service,14/03/2014,Postage,OFFICIAL RECEIVER SERVICES                                                                          ,DX NETWORK SERVICES LTD,BA0000273149,240.20,849741385
BIS,The Insolvency Service,14/03/2014,Postage,OFFICIAL RECEIVER SERVICES                                                                          ,DX NETWORK SERVICES LTD,BA0000273149,249.23,849741385
BIS,The Insolvency Service,14/03/2014,Postage,OFFICIAL RECEIVER SERVICES                                                                          ,DX NETWORK SERVICES LTD,BA0000273149,265.41,849741385
BIS,The Insolvency Service,14/03/2014,Postage,OFFICIAL RECEIVER SERVICES                                                                          ,DX NETWORK SERVICES LTD,BA0000273149,277.56,849741385
BIS,The Insolvency Service,14/03/2014,Postage,OFFICIAL RECEIVER SERVICES                                                                          ,DX NETWORK SERVICES LTD,BA0000273149,364.80,849741385
BIS,The Insolvency Service,14/03/2014,Postage,OFFICIAL RECEIVER SERVICES                                                                          ,DX NETWORK SERVICES LTD,BA0000273149,412.45,849741385
BIS,The Insolvency Service,14/03/2014,Postage,OFFICIAL RECEIVER SERVICES                                                                          ,DX NETWORK SERVICES LTD,BA0000273149,488.22,849741385
BIS,The Insolvency Service,14/03/2014,Postage,OFFICIAL RECEIVER SERVICES                                                                          ,DX NETWORK SERVICES LTD,BA0000273149,687.33,849741385
BIS,The Insolvency Service,07/03/2014,Accommodation,ESTATES,E.ON,BA0000272852,"2,674.84",559097889
BIS,The Insolvency Service,20/03/2014,Accommodation,ESTATES,E.ON ENERGY,BA0000273364,261.35,559097889
BIS,The Insolvency Service,20/03/2014,Accommodation,ESTATES,E.ON ENERGY,BA0000273368,418.71,559097889
BIS,The Insolvency Service,24/03/2014,Accommodation,ESTATES,E.ON ENERGY,BA0000273440,414.90,559097889
BIS,The Insolvency Service,28/03/2014,Accommodation,ESTATES,E.ON ENERGY,BA0000273786,729.59,559097889
BIS,The Insolvency Service,01/03/2014,Travel and Subsistence,OFFICIAL RECEIVER SERVICES                                                                          ,EAST MIDLANDS TRAINS,BA0000273613,9.00,
BIS,The Insolvency Service,01/03/2014,Travel and Subsistence,OFFICIAL RECEIVER SERVICES                                                                          ,EAST MIDLANDS TRAINS,BA0000273613,17.90,
BIS,The Insolvency Service,01/03/2014,Office Machinery,FINANCE AND COMMERCIAL,EBUYER (UK) LIMITED,BA0000273613,83.24,836592300
BIS,The Insolvency Service,25/03/2014,Accommodation,BUSINESS SERVICES DIRECTORATE                                                                       ,EC GROUP,BA0000273599,"1,507.31",235525471
BIS,The Insolvency Service,27/03/2014,Accommodation,BUSINESS SERVICES DIRECTORATE                                                                       ,EC GROUP,BA0000273673,"1,353.74",235525471
BIS,The Insolvency Service,31/03/2014,Accommodation,BUSINESS SERVICES DIRECTORATE                                                                       ,EC GROUP,BA0000273829,399.73,235525471
BIS,The Insolvency Service,31/03/2014,Accommodation,BUSINESS SERVICES DIRECTORATE                                                                       ,EC GROUP,BA0000273830,353.23,235525471
BIS,The Insolvency Service,24/03/2014,Accommodation,"PLANNING, PERFORMANCE & PROJECTS                                                                    ",EC HARRIS LLP,BA0000273472,"4,800.00",660476038
BIS,The Insolvency Service,24/03/2014,Accommodation,"PLANNING, PERFORMANCE & PROJECTS                                                                    ",EC HARRIS LLP,BA0000273472,"5,700.00",660476038
BIS,The Insolvency Service,24/03/2014,Accommodation,"PLANNING, PERFORMANCE & PROJECTS                                                                    ",EC HARRIS LLP,BA0000273472,"6,300.00",660476038
BIS,The Insolvency Service,27/03/2014,Accommodation,ESTATES,EC HARRIS LLP,BA0000273666,"8,022.00",660476038
BIS,The Insolvency Service,31/03/2014,Accommodation,"PLANNING, PERFORMANCE & PROJECTS                                                                    ",EC HARRIS LLP,BA0000273849,"1,931.02",660476038
BIS,The Insolvency Service,31/03/2014,Accommodation,"PLANNING, PERFORMANCE & PROJECTS                                                                    ",EC HARRIS LLP,BA0000273850,"6,098.28",660476038
BIS,The Insolvency Service,31/03/2014,Accommodation,"PLANNING, PERFORMANCE & PROJECTS                                                                    ",EC HARRIS LLP,BA0000273843,"1,200.00",660476038
BIS,The Insolvency Service,31/03/2014,Accommodation,"PLANNING, PERFORMANCE & PROJECTS                                                                    ",EC HARRIS LLP,BA0000273844,"1,560.00",660476038
BIS,The Insolvency Service,31/03/2014,Accommodation,"PLANNING, PERFORMANCE & PROJECTS                                                                    ",EC HARRIS LLP,BA0000273844,"9,008.64",660476038
BIS,The Insolvency Service,31/03/2014,Accommodation,"PLANNING, PERFORMANCE & PROJECTS                                                                    ",EC HARRIS LLP,BA0000273845,"10,591.44",660476038
BIS,The Insolvency Service,01/03/2014,Travel and Subsistence,BUSINESS SERVICES DIRECTORATE                                                                       ,EC MAINLINE CO T/O,BA0000273613,5.00,
BIS,The Insolvency Service,11/03/2014,Accommodation,BUSINESS SERVICES DIRECTORATE                                                                       ,EDM - EDM Group Ltd,BA0000272524,-52.50,644894202
BIS,The Insolvency Service,11/03/2014,Accommodation,OFFICIAL RECEIVER SERVICES                                                                          ,EDM - EDM Group Ltd,BA0000272911,"5,017.87",644894202
BIS,The Insolvency Service,13/03/2014,Insolvency Case Related Costs,OFFICIAL RECEIVER SERVICES                                                                          ,EDM - EDM Group Ltd,BA0000273014,"-2,141.26",644894202
BIS,The Insolvency Service,13/03/2014,Insolvency Case Related Costs,OFFICIAL RECEIVER SERVICES                                                                          ,EDM - EDM Group Ltd,BA0000273015,"2,141.26",644894202
BIS,The Insolvency Service,18/03/2014,Accommodation,BUSINESS SERVICES DIRECTORATE                                                                       ,EDM - EDM Group Ltd,BA0000273244,210.41,644894202
BIS,The Insolvency Service,18/03/2014,Accommodation,CUSTOMER AND COMMUNICATIONS                                                                         ,EDM - EDM Group Ltd,BA0000273244,1.50,644894202
BIS,The Insolvency Service,18/03/2014,Accommodation,EXTERNAL AFFAIRS                                                                                    ,EDM - EDM Group Ltd,BA0000273244,201.50,644894202
BIS,The Insolvency Service,18/03/2014,Accommodation,INFORMATION TECHNOLOGY                                                                              ,EDM - EDM Group Ltd,BA0000273244,90.65,644894202
BIS,The Insolvency Service,18/03/2014,Accommodation,INVESTIGATION & ENFORCEMENT SERVICES                                                                ,EDM - EDM Group Ltd,BA0000273193,516.62,644894202
BIS,The Insolvency Service,18/03/2014,Accommodation,INVESTIGATION & ENFORCEMENT SERVICES                                                                ,EDM - EDM Group Ltd,BA0000273244,206.33,644894202
BIS,The Insolvency Service,18/03/2014,Accommodation,OFFICIAL RECEIVER SERVICES                                                                          ,EDM - EDM Group Ltd,BA0000273244,8.12,644894202
BIS,The Insolvency Service,18/03/2014,Accommodation,PEOPLE & CAPABILITY                                                                                 ,EDM - EDM Group Ltd,BA0000273244,13.43,644894202
BIS,The Insolvency Service,20/03/2014,Accommodation,EXTERNAL AFFAIRS                                                                                    ,EDM - EDM Group Ltd,BA0000273302,"1,052.44",644894202
BIS,The Insolvency Service,18/03/2014,Telecoms,ESTATES,EE LTD                                                      ,BA0000273214,"1,073.84",771592016
BIS,The Insolvency Service,20/03/2014,Telecoms,ESTATES,EE LTD                                                      ,BA0000273342,"4,973.16",771592016
BIS,The Insolvency Service,25/03/2014,Insolvency Case Related Costs,"PLANNING, PERFORMANCE & PROJECTS                                                                    ",EQUIFAX LTD                                                 ,BA0000273579,"1,208.52",
BIS,The Insolvency Service,06/03/2014,Legal Costs,FINANCE AND COMMERCIAL                                                                              ,EVERSHEDS  LLP,BA0000272813,"9,566.40",820704559
BIS,The Insolvency Service,26/03/2014,Legal Costs,FINANCE AND COMMERCIAL                                                                              ,EVERSHEDS  LLP,BA0000273646,"5,979.54",820704559
BIS,The Insolvency Service,11/03/2014,Agency Workers,CUSTOMER AND COMMUNICATIONS                                                                         ,EXECUTIVE BANDWIDTH LTD,BA0000272923,"11,220.90",
BIS,The Insolvency Service,11/03/2014,Agency Workers,"PLANNING, PERFORMANCE & PROJECTS                                                                    ",EXECUTIVE BANDWIDTH LTD,BA0000272932,"9,353.28",
BIS,The Insolvency Service,11/03/2014,Insolvency Case Related Costs,OFFICIAL RECEIVER SERVICES                                                                          ,EXPERIAN QAS LTD,BA0000272966,"5,625.96",887133593
BIS,The Insolvency Service,14/03/2014,Insolvency Case Related Costs,INVESTIGATION & ENFORCEMENT SERVICES                                                                ,EXPERIAN QAS LTD,BA0000273146,"3,003.06",887133593
BIS,The Insolvency Service,18/03/2014,Insolvency Case Related Costs,INVESTIGATION & ENFORCEMENT SERVICES                                                                ,EXPERIAN QAS LTD,BA0000273213,491.40,887133593
BIS,The Insolvency Service,18/03/2014,Insolvency Case Related Costs,INVESTIGATION & ENFORCEMENT SERVICES                                                                ,EXPERIAN QAS LTD,BA0000273213,518.70,887133593
BIS,The Insolvency Service,18/03/2014,Insolvency Case Related Costs,INVESTIGATION & ENFORCEMENT SERVICES                                                                ,EXPERIAN QAS LTD,BA0000273213,829.92,887133593
BIS,The Insolvency Service,24/03/2014,Computer and IT Systems,INFORMATION TECHNOLOGY                                                                              ,EXPERIAN QAS LTD,BA0000273469,"11,162.05",887133593
BIS,The Insolvency Service,24/03/2014,Computer and IT Systems,INFORMATION TECHNOLOGY                                                                              ,EXPERIAN QAS LTD,BA0000273469,"12,831.42",887133593
BIS,The Insolvency Service,24/03/2014,Computer and IT Systems,INFORMATION TECHNOLOGY                                                                              ,EXPERIAN QAS LTD,BA0000273469,"74,785.75",887133593
BIS,The Insolvency Service,25/03/2014,Insolvency Case Related Costs,INVESTIGATION & ENFORCEMENT SERVICES                                                                ,EXPERIAN QAS LTD,BA0000273549,522.24,887133593
BIS,The Insolvency Service,25/03/2014,Insolvency Case Related Costs,INVESTIGATION & ENFORCEMENT SERVICES                                                                ,EXPERIAN QAS LTD,BA0000273588,"2,080.26",887133593
BIS,The Insolvency Service,26/03/2014,Insolvency Case Related Costs,OFFICIAL RECEIVER SERVICES                                                                          ,EXPERIAN QAS LTD,BA0000273650,"2,921.10",887133593
BIS,The Insolvency Service,26/03/2014,Insolvency Case Related Costs,OFFICIAL RECEIVER SERVICES                                                                          ,EXPERIAN QAS LTD,BA0000273651,"3,010.56",887133593
BIS,The Insolvency Service,06/03/2014,Accommodation,ESTATES,F&C REIT ASSET MANAGEMENT PLC,BA0000272810,"70,530.00",209938729
BIS,The Insolvency Service,06/03/2014,Accommodation,ESTATES,F&C REIT ASSET MANAGEMENT PLC,BA0000272810,"20,506.32",209938729
BIS,The Insolvency Service,27/03/2014,Accommodation,ESTATES,F&C REIT ASSET MANAGEMENT PLC,BA0000273721,"8,130.66",209938729
BIS,The Insolvency Service,01/03/2014,Telecoms,BUSINESS SERVICES DIRECTORATE                                                                       ,FASTHOSTS INTERNET,BA0000273613,105.91,
BIS,The Insolvency Service,01/03/2014,Accommodation,BUSINESS SERVICES DIRECTORATE                                                                       ,FHR AIRPORT SERVICES                                        ,BA0000273613,8.99,
BIS,The Insolvency Service,24/03/2014,Training Costs,PEOPLE & CAPABILITY                                                                                 ,FIRST FORENSIC FORUM,BA0000273405,250.00,
BIS,The Insolvency Service,01/03/2014,Travel and Subsistence,"PLANNING, PERFORMANCE & PROJECTS                                                                    ",FIRST GTR WESTERN,BA0000273613,15.60,
BIS,The Insolvency Service,01/03/2014,Travel and Subsistence,"PLANNING, PERFORMANCE & PROJECTS                                                                    ",FIRST GTR WESTERN,BA0000273613,7.80,
BIS,The Insolvency Service,01/03/2014,Travel and Subsistence,INVESTIGATION & ENFORCEMENT SERVICES                                                                ,FIRST GTR WESTERN,BA0000273613,27.50,
BIS,The Insolvency Service,01/03/2014,Travel and Subsistence,"PLANNING, PERFORMANCE & PROJECTS                                                                    ",FIRST GTR WESTERN,BA0000273613,7.80,
BIS,The Insolvency Service,01/03/2014,Travel and Subsistence,FINANCE AND COMMERCIAL,FLYBE,BA0000273613,237.72,
BIS,The Insolvency Service,01/03/2014,Travel and Subsistence,FINANCE AND COMMERCIAL,FLYBE,BA0000273613,196.52,
BIS,The Insolvency Service,01/03/2014,Travel and Subsistence,FINANCE AND COMMERCIAL,FLYBE,BA0000273613,206.82,
BIS,The Insolvency Service,01/03/2014,Travel and Subsistence,FINANCE AND COMMERCIAL,FLYBE,BA0000273613,217.12,
BIS,The Insolvency Service,18/03/2014,Computer and IT Systems,INFORMATION TECHNOLOGY                                                                              ,FOUNDATION IT,BA0000273265,"3,561.60",642230476
BIS,The Insolvency Service,11/03/2014,Investigation and Enforcement Costs,INVESTIGATION & ENFORCEMENT SERVICES                                                                ,FRANCIS WILKS & JONES LLP                                   ,BA0000272925,"150,000.00",
BIS,The Insolvency Service,26/03/2014,Investigation and Enforcement Costs,INVESTIGATION & ENFORCEMENT SERVICES                                                                ,FRANCIS WILKS & JONES LLP                                   ,BA0000273652,"200,000.00",
BIS,The Insolvency Service,01/03/2014,Insolvency Case Related Costs,OFFICIAL RECEIVER SERVICES                                                                          ,FRANK G. BOWEN LTD,BA0000272562,150.00,238504366
BIS,The Insolvency Service,24/03/2014,Investigation and Enforcement Costs,INVESTIGATION & ENFORCEMENT SERVICES                                                                ,FTI CONSULTING LLP,BA0000273435,"2,992.04",867255490
BIS,The Insolvency Service,31/03/2014,Investigation and Enforcement Costs,INVESTIGATION & ENFORCEMENT SERVICES                                                                ,FTI CONSULTING LLP,BA0000273847,"29,189.70",867255490
BIS,The Insolvency Service,13/03/2014,Computer and IT Systems,BUSINESS SERVICES DIRECTORATE                                                                       ,G4S FIRE & SECURITY SYSTEMS (UK) LTD                        ,BA0000272894,246.42,238560256
BIS,The Insolvency Service,13/03/2014,Telecoms,BUSINESS SERVICES DIRECTORATE                                                                       ,GAMMA BUSINESS COMMUNICATIONS LTD,BA0000273075,0.03,823820344
BIS,The Insolvency Service,13/03/2014,Telecoms,BUSINESS SERVICES DIRECTORATE                                                                       ,GAMMA BUSINESS COMMUNICATIONS LTD,BA0000273075,99.48,823820344
BIS,The Insolvency Service,13/03/2014,Telecoms,BUSINESS SERVICES DIRECTORATE                                                                       ,GAMMA BUSINESS COMMUNICATIONS LTD,BA0000273075,107.85,823820344
BIS,The Insolvency Service,13/03/2014,Telecoms,FACILITIES                                                                                          ,GAMMA BUSINESS COMMUNICATIONS LTD,BA0000273075,431.08,823820344
BIS,The Insolvency Service,13/03/2014,Telecoms,INFORMATION TECHNOLOGY                                                                              ,GAMMA BUSINESS COMMUNICATIONS LTD,BA0000273075,156.22,823820344
BIS,The Insolvency Service,13/03/2014,Telecoms,OFFICIAL RECEIVER SERVICES                                                                          ,GAMMA BUSINESS COMMUNICATIONS LTD,BA0000273075,0.02,823820344
BIS,The Insolvency Service,13/03/2014,Telecoms,OFFICIAL RECEIVER SERVICES                                                                          ,GAMMA BUSINESS COMMUNICATIONS LTD,BA0000273075,0.47,823820344
BIS,The Insolvency Service,13/03/2014,Telecoms,OFFICIAL RECEIVER SERVICES                                                                          ,GAMMA BUSINESS COMMUNICATIONS LTD,BA0000273075,12.83,823820344
BIS,The Insolvency Service,13/03/2014,Telecoms,OFFICIAL RECEIVER SERVICES                                                                          ,GAMMA BUSINESS COMMUNICATIONS LTD,BA0000273075,12.84,823820344
BIS,The Insolvency Service,13/03/2014,Telecoms,OFFICIAL RECEIVER SERVICES                                                                          ,GAMMA BUSINESS COMMUNICATIONS LTD,BA0000273075,25.23,823820344
BIS,The Insolvency Service,13/03/2014,Telecoms,OFFICIAL RECEIVER SERVICES                                                                          ,GAMMA BUSINESS COMMUNICATIONS LTD,BA0000273075,44.34,823820344
BIS,The Insolvency Service,13/03/2014,Telecoms,OFFICIAL RECEIVER SERVICES                                                                          ,GAMMA BUSINESS COMMUNICATIONS LTD,BA0000273075,63.35,823820344
BIS,The Insolvency Service,13/03/2014,Telecoms,OFFICIAL RECEIVER SERVICES                                                                          ,GAMMA BUSINESS COMMUNICATIONS LTD,BA0000273075,77.01,823820344
BIS,The Insolvency Service,13/03/2014,Telecoms,OFFICIAL RECEIVER SERVICES                                                                          ,GAMMA BUSINESS COMMUNICATIONS LTD,BA0000273075,83.33,823820344
BIS,The Insolvency Service,13/03/2014,Telecoms,OFFICIAL RECEIVER SERVICES                                                                          ,GAMMA BUSINESS COMMUNICATIONS LTD,BA0000273075,110.27,823820344
BIS,The Insolvency Service,13/03/2014,Telecoms,OFFICIAL RECEIVER SERVICES                                                                          ,GAMMA BUSINESS COMMUNICATIONS LTD,BA0000273075,133.04,823820344
BIS,The Insolvency Service,13/03/2014,Telecoms,OFFICIAL RECEIVER SERVICES                                                                          ,GAMMA BUSINESS COMMUNICATIONS LTD,BA0000273075,137.43,823820344
BIS,The Insolvency Service,13/03/2014,Telecoms,OFFICIAL RECEIVER SERVICES                                                                          ,GAMMA BUSINESS COMMUNICATIONS LTD,BA0000273075,149.07,823820344
BIS,The Insolvency Service,13/03/2014,Telecoms,OFFICIAL RECEIVER SERVICES                                                                          ,GAMMA BUSINESS COMMUNICATIONS LTD,BA0000273075,196.93,823820344
BIS,The Insolvency Service,13/03/2014,Telecoms,OFFICIAL RECEIVER SERVICES                                                                          ,GAMMA BUSINESS COMMUNICATIONS LTD,BA0000273075,200.41,823820344
BIS,The Insolvency Service,13/03/2014,Telecoms,OFFICIAL RECEIVER SERVICES                                                                          ,GAMMA BUSINESS COMMUNICATIONS LTD,BA0000273075,212.29,823820344
BIS,The Insolvency Service,13/03/2014,Telecoms,OFFICIAL RECEIVER SERVICES                                                                          ,GAMMA BUSINESS COMMUNICATIONS LTD,BA0000273075,214.46,823820344
BIS,The Insolvency Service,13/03/2014,Telecoms,OFFICIAL RECEIVER SERVICES                                                                          ,GAMMA BUSINESS COMMUNICATIONS LTD,BA0000273075,218.27,823820344
BIS,The Insolvency Service,13/03/2014,Telecoms,OFFICIAL RECEIVER SERVICES                                                                          ,GAMMA BUSINESS COMMUNICATIONS LTD,BA0000273075,230.06,823820344
BIS,The Insolvency Service,13/03/2014,Telecoms,OFFICIAL RECEIVER SERVICES                                                                          ,GAMMA BUSINESS COMMUNICATIONS LTD,BA0000273075,234.78,823820344
BIS,The Insolvency Service,13/03/2014,Telecoms,OFFICIAL RECEIVER SERVICES                                                                          ,GAMMA BUSINESS COMMUNICATIONS LTD,BA0000273075,443.91,823820344
BIS,The Insolvency Service,07/03/2014,Investigation and Enforcement Costs,INVESTIGATION & ENFORCEMENT SERVICES                                                                ,GRANT THORNTON,BA0000272874,"4,857.50",835586102
BIS,The Insolvency Service,14/03/2014,Investigation and Enforcement Costs,INVESTIGATION & ENFORCEMENT SERVICES                                                                ,GRANT THORNTON,BA0000273138,"4,857.50",835586102
BIS,The Insolvency Service,20/03/2014,Investigation and Enforcement Costs,INVESTIGATION & ENFORCEMENT SERVICES                                                                ,GRANT THORNTON,BA0000273304,"11,155.80",835586102
BIS,The Insolvency Service,01/03/2014,Accommodation,OFFICIAL RECEIVER SERVICES                                                                          ,GREENHAM TRADING LTD,BA0000273613,106.80,823820932
BIS,The Insolvency Service,06/03/2014,Training Costs,PEOPLE & CAPABILITY                                                                                 ,GUILDHALL CHAMBERS,BA0000272820,50.00,609528525
BIS,The Insolvency Service,13/03/2014,Accounting and Banking,BUSINESS SERVICES DIRECTORATE                                                                       ,HAGUE COMPUTER SUPPLIES,BA0000273056,700.80,333613774
BIS,The Insolvency Service,13/03/2014,Accounting and Banking,BUSINESS SERVICES DIRECTORATE                                                                       ,HAGUE COMPUTER SUPPLIES,BA0000273057,808.32,333613774
BIS,The Insolvency Service,06/03/2014,Agency Workers,BUSINESS SERVICES DIRECTORATE                                                                       ,HAYS OFFICE SUPPORT,BA0000272753,"1,459.16",243358171
BIS,The Insolvency Service,06/03/2014,Agency Workers,BUSINESS SERVICES DIRECTORATE                                                                       ,HAYS OFFICE SUPPORT,BA0000272753,"3,408.88",243358171
BIS,The Insolvency Service,06/03/2014,Agency Workers,BUSINESS SERVICES DIRECTORATE                                                                       ,HAYS OFFICE SUPPORT,BA0000272753,"3,710.89",243358171
BIS,The Insolvency Service,06/03/2014,Agency Workers,BUSINESS SERVICES DIRECTORATE                                                                       ,HAYS OFFICE SUPPORT,BA0000272753,"5,811.20",243358171
BIS,The Insolvency Service,06/03/2014,Agency Workers,BUSINESS SERVICES DIRECTORATE                                                                       ,HAYS OFFICE SUPPORT,BA0000272753,"6,023.62",243358171
BIS,The Insolvency Service,06/03/2014,Agency Workers,BUSINESS SERVICES DIRECTORATE                                                                       ,HAYS OFFICE SUPPORT,BA0000272753,"8,854.85",243358171
BIS,The Insolvency Service,06/03/2014,Agency Workers,BUSINESS SERVICES DIRECTORATE                                                                       ,HAYS OFFICE SUPPORT,BA0000272753,"11,245.86",243358171
BIS,The Insolvency Service,06/03/2014,Agency Workers,BUSINESS SERVICES DIRECTORATE                                                                       ,HAYS OFFICE SUPPORT,BA0000272753,"12,578.07",243358171
BIS,The Insolvency Service,06/03/2014,Agency Workers,BUSINESS SERVICES DIRECTORATE                                                                       ,HAYS OFFICE SUPPORT,BA0000272753,"30,198.04",243358171
BIS,The Insolvency Service,06/03/2014,Agency Workers,FINANCE AND COMMERCIAL,HAYS OFFICE SUPPORT,BA0000272753,"2,158.40",243358171
BIS,The Insolvency Service,06/03/2014,Agency Workers,INFORMATION TECHNOLOGY                                                                              ,HAYS OFFICE SUPPORT,BA0000272753,"23,450.25",243358171
BIS,The Insolvency Service,06/03/2014,Agency Workers,INVESTIGATION & ENFORCEMENT SERVICES                                                                ,HAYS OFFICE SUPPORT,BA0000272753,560.42,243358171
BIS,The Insolvency Service,06/03/2014,Agency Workers,INVESTIGATION & ENFORCEMENT SERVICES                                                                ,HAYS OFFICE SUPPORT,BA0000272753,"2,052.38",243358171
BIS,The Insolvency Service,06/03/2014,Agency Workers,INVESTIGATION & ENFORCEMENT SERVICES                                                                ,HAYS OFFICE SUPPORT,BA0000272753,"2,241.66",243358171
BIS,The Insolvency Service,06/03/2014,Agency Workers,INVESTIGATION & ENFORCEMENT SERVICES                                                                ,HAYS OFFICE SUPPORT,BA0000272753,"4,263.63",243358171
BIS,The Insolvency Service,06/03/2014,Agency Workers,INVESTIGATION & ENFORCEMENT SERVICES                                                                ,HAYS OFFICE SUPPORT,BA0000272753,"8,764.36",243358171
BIS,The Insolvency Service,06/03/2014,Agency Workers,Official Receiver Operations - Central and Eastern Region,HAYS OFFICE SUPPORT,BA0000272753,"1,617.98",243358171
BIS,The Insolvency Service,06/03/2014,Agency Workers,OFFICIAL RECEIVER SERVICES                                                                          ,HAYS OFFICE SUPPORT,BA0000272753,761.54,243358171
BIS,The Insolvency Service,06/03/2014,Agency Workers,OFFICIAL RECEIVER SERVICES                                                                          ,HAYS OFFICE SUPPORT,BA0000272753,887.11,243358171
BIS,The Insolvency Service,06/03/2014,Agency Workers,OFFICIAL RECEIVER SERVICES                                                                          ,HAYS OFFICE SUPPORT,BA0000272753,"1,498.92",243358171
BIS,The Insolvency Service,06/03/2014,Agency Workers,OFFICIAL RECEIVER SERVICES                                                                          ,HAYS OFFICE SUPPORT,BA0000272753,"1,754.46",243358171
BIS,The Insolvency Service,06/03/2014,Agency Workers,OFFICIAL RECEIVER SERVICES                                                                          ,HAYS OFFICE SUPPORT,BA0000272753,"1,786.80",243358171
BIS,The Insolvency Service,06/03/2014,Agency Workers,OFFICIAL RECEIVER SERVICES                                                                          ,HAYS OFFICE SUPPORT,BA0000272753,"1,914.80",243358171
BIS,The Insolvency Service,06/03/2014,Agency Workers,OFFICIAL RECEIVER SERVICES                                                                          ,HAYS OFFICE SUPPORT,BA0000272753,"1,931.20",243358171
BIS,The Insolvency Service,06/03/2014,Agency Workers,OFFICIAL RECEIVER SERVICES                                                                          ,HAYS OFFICE SUPPORT,BA0000272753,"2,105.38",243358171
BIS,The Insolvency Service,06/03/2014,Agency Workers,OFFICIAL RECEIVER SERVICES                                                                          ,HAYS OFFICE SUPPORT,BA0000272753,"3,296.41",243358171
BIS,The Insolvency Service,06/03/2014,Agency Workers,OFFICIAL RECEIVER SERVICES                                                                          ,HAYS OFFICE SUPPORT,BA0000272753,"3,381.04",243358171
BIS,The Insolvency Service,06/03/2014,Agency Workers,OFFICIAL RECEIVER SERVICES                                                                          ,HAYS OFFICE SUPPORT,BA0000272753,"5,572.03",243358171
BIS,The Insolvency Service,06/03/2014,Agency Workers,OFFICIAL RECEIVER SERVICES                                                                          ,HAYS OFFICE SUPPORT,BA0000272753,"8,373.24",243358171
BIS,The Insolvency Service,06/03/2014,Agency Workers,OFFICIAL RECEIVER SERVICES                                                                          ,HAYS OFFICE SUPPORT,BA0000272753,"11,351.97",243358171
BIS,The Insolvency Service,06/03/2014,Agency Workers,OFFICIAL RECEIVER SERVICES                                                                          ,HAYS OFFICE SUPPORT,BA0000272753,"17,027.96",243358171
BIS,The Insolvency Service,06/03/2014,Agency Workers,PEOPLE & CAPABILITY                                                                                 ,HAYS OFFICE SUPPORT,BA0000272753,"1,817.60",243358171
BIS,The Insolvency Service,06/03/2014,Agency Workers,"PLANNING, PERFORMANCE & PROJECTS                                                                    ",HAYS OFFICE SUPPORT,BA0000272753,"3,151.10",243358171
BIS,The Insolvency Service,06/03/2014,Agency Workers,"PLANNING, PERFORMANCE & PROJECTS                                                                    ",HAYS OFFICE SUPPORT,BA0000272753,"7,560.42",243358171
BIS,The Insolvency Service,04/03/2014,Agency Workers,INFORMATION TECHNOLOGY                                                                              ,HAYS SPECIALIST RECRUITMENT LTD,BA0000272575,161.77,773695871
BIS,The Insolvency Service,25/03/2014,Agency Workers,FINANCE AND COMMERCIAL,HAYS SPECIALIST RECRUITMENT LTD,BA0000273518,"2,294.16",773695871
BIS,The Insolvency Service,25/03/2014,Agency Workers,FINANCE AND COMMERCIAL,HAYS SPECIALIST RECRUITMENT LTD,BA0000273519,"2,294.16",773695871
BIS,The Insolvency Service,25/03/2014,Agency Workers,FINANCE AND COMMERCIAL,HAYS SPECIALIST RECRUITMENT LTD,BA0000273520,"2,064.74",773695871
BIS,The Insolvency Service,25/03/2014,Agency Workers,FINANCE AND COMMERCIAL,HAYS SPECIALIST RECRUITMENT LTD,BA0000273521,"1,835.33",773695871
BIS,The Insolvency Service,25/03/2014,Agency Workers,FINANCE AND COMMERCIAL,HAYS SPECIALIST RECRUITMENT LTD,BA0000273522,"2,294.16",773695871
BIS,The Insolvency Service,25/03/2014,Agency Workers,FINANCE AND COMMERCIAL,HAYS SPECIALIST RECRUITMENT LTD,BA0000273523,"2,294.16",773695871
BIS,The Insolvency Service,25/03/2014,Agency Workers,FINANCE AND COMMERCIAL,HAYS SPECIALIST RECRUITMENT LTD,BA0000273524,"2,294.16",773695871
BIS,The Insolvency Service,25/03/2014,Agency Workers,FINANCE AND COMMERCIAL,HAYS SPECIALIST RECRUITMENT LTD,BA0000273525,"2,294.16",773695871
BIS,The Insolvency Service,25/03/2014,Agency Workers,FINANCE AND COMMERCIAL,HAYS SPECIALIST RECRUITMENT LTD,BA0000273526,"2,294.16",773695871
BIS,The Insolvency Service,25/03/2014,Agency Workers,FINANCE AND COMMERCIAL,HAYS SPECIALIST RECRUITMENT LTD,BA0000273527,"2,294.16",773695871
BIS,The Insolvency Service,25/03/2014,Agency Workers,FINANCE AND COMMERCIAL,HAYS SPECIALIST RECRUITMENT LTD,BA0000273528,"2,294.16",773695871
BIS,The Insolvency Service,13/03/2014,Employee Related Costs,PEOPLE & CAPABILITY                                                                                 ,HEALTH MANAGEMENT LTD,BA0000272946,"2,707.20",792250621
BIS,The Insolvency Service,13/03/2014,Employee Related Costs,PEOPLE & CAPABILITY                                                                                 ,HEALTH MANAGEMENT LTD,BA0000272947,"1,964.34",792250621
BIS,The Insolvency Service,01/03/2014,Travel and Subsistence,BUSINESS SERVICES DIRECTORATE                                                                       ,HI PRESTON                                                  ,BA0000273613,65.00,
BIS,The Insolvency Service,11/03/2014,Investigation and Enforcement Costs,OFFICIAL RECEIVER SERVICES                                                                          ,HMCTS,BA0000272885,175.00,
BIS,The Insolvency Service,27/03/2014,Investigation and Enforcement Costs,OFFICIAL RECEIVER SERVICES                                                                          ,HMCTS,BA0000273544,175.00,
BIS,The Insolvency Service,01/03/2014,Travel and Subsistence,INVESTIGATION & ENFORCEMENT SERVICES                                                                ,HOTELSMART,BA0000273613,40.00,
BIS,The Insolvency Service,11/03/2014,Investigation and Enforcement Costs,INVESTIGATION & ENFORCEMENT SERVICES                                                                ,HOWES PERCIVAL,BA0000272924,11.00,119523573
BIS,The Insolvency Service,11/03/2014,Investigation and Enforcement Costs,INVESTIGATION & ENFORCEMENT SERVICES                                                                ,HOWES PERCIVAL,BA0000272924,"27,537.58",119523573
BIS,The Insolvency Service,11/03/2014,Investigation and Enforcement Costs,INVESTIGATION & ENFORCEMENT SERVICES                                                                ,HOWES PERCIVAL,BA0000272953,7.00,119523573
BIS,The Insolvency Service,11/03/2014,Investigation and Enforcement Costs,INVESTIGATION & ENFORCEMENT SERVICES                                                                ,HOWES PERCIVAL,BA0000272953,"62,775.52",119523573
BIS,The Insolvency Service,11/03/2014,Investigation and Enforcement Costs,INVESTIGATION & ENFORCEMENT SERVICES                                                                ,HOWES PERCIVAL,BA0000272945,"7,227.50",119523573
BIS,The Insolvency Service,11/03/2014,Investigation and Enforcement Costs,INVESTIGATION & ENFORCEMENT SERVICES                                                                ,HOWES PERCIVAL,BA0000272945,"72,735.91",119523573
BIS,The Insolvency Service,11/03/2014,Investigation and Enforcement Costs,INVESTIGATION & ENFORCEMENT SERVICES                                                                ,HOWES PERCIVAL,BA0000272883,629.80,119523573
BIS,The Insolvency Service,11/03/2014,Investigation and Enforcement Costs,INVESTIGATION & ENFORCEMENT SERVICES                                                                ,HOWES PERCIVAL,BA0000272907,97.00,119523573
BIS,The Insolvency Service,11/03/2014,Investigation and Enforcement Costs,INVESTIGATION & ENFORCEMENT SERVICES                                                                ,HOWES PERCIVAL,BA0000272907,"4,168.80",119523573
BIS,The Insolvency Service,11/03/2014,Investigation and Enforcement Costs,INVESTIGATION & ENFORCEMENT SERVICES                                                                ,HOWES PERCIVAL,BA0000272908,49.00,119523573
BIS,The Insolvency Service,11/03/2014,Investigation and Enforcement Costs,INVESTIGATION & ENFORCEMENT SERVICES                                                                ,HOWES PERCIVAL,BA0000272908,"9,202.33",119523573
BIS,The Insolvency Service,14/03/2014,Investigation and Enforcement Costs,INVESTIGATION & ENFORCEMENT SERVICES                                                                ,HOWES PERCIVAL,BA0000273150,"7,009.00",119523573
BIS,The Insolvency Service,14/03/2014,Investigation and Enforcement Costs,INVESTIGATION & ENFORCEMENT SERVICES                                                                ,HOWES PERCIVAL,BA0000273150,"17,925.61",119523573
BIS,The Insolvency Service,27/03/2014,Investigation and Enforcement Costs,INVESTIGATION & ENFORCEMENT SERVICES                                                                ,HOWES PERCIVAL,BA0000273704,30.00,119523573
BIS,The Insolvency Service,27/03/2014,Investigation and Enforcement Costs,INVESTIGATION & ENFORCEMENT SERVICES                                                                ,HOWES PERCIVAL,BA0000273704,"29,836.75",119523573
BIS,The Insolvency Service,27/03/2014,Investigation and Enforcement Costs,INVESTIGATION & ENFORCEMENT SERVICES                                                                ,HOWES PERCIVAL,BA0000273705,39.00,119523573
BIS,The Insolvency Service,27/03/2014,Investigation and Enforcement Costs,INVESTIGATION & ENFORCEMENT SERVICES                                                                ,HOWES PERCIVAL,BA0000273705,"44,177.04",119523573
BIS,The Insolvency Service,27/03/2014,Investigation and Enforcement Costs,INVESTIGATION & ENFORCEMENT SERVICES                                                                ,HOWES PERCIVAL,BA0000273708,"4,976.95",119523573
BIS,The Insolvency Service,27/03/2014,Investigation and Enforcement Costs,INVESTIGATION & ENFORCEMENT SERVICES                                                                ,HOWES PERCIVAL,BA0000273708,"97,416.35",119523573
BIS,The Insolvency Service,27/03/2014,Investigation and Enforcement Costs,INVESTIGATION & ENFORCEMENT SERVICES                                                                ,HOWES PERCIVAL,BA0000273706,"2,237.80",119523573
BIS,The Insolvency Service,27/03/2014,Investigation and Enforcement Costs,INVESTIGATION & ENFORCEMENT SERVICES                                                                ,HOWES PERCIVAL,BA0000273707,"1,460.00",119523573
BIS,The Insolvency Service,27/03/2014,Investigation and Enforcement Costs,INVESTIGATION & ENFORCEMENT SERVICES                                                                ,HOWES PERCIVAL,BA0000273707,"10,569.70",119523573
BIS,The Insolvency Service,28/03/2014,Investigation and Enforcement Costs,INVESTIGATION & ENFORCEMENT SERVICES                                                                ,HOWES PERCIVAL,BA0000273749,480.00,119523573
BIS,The Insolvency Service,28/03/2014,Investigation and Enforcement Costs,INVESTIGATION & ENFORCEMENT SERVICES                                                                ,HOWES PERCIVAL,BA0000273749,"11,458.20",119523573
BIS,The Insolvency Service,28/03/2014,Investigation and Enforcement Costs,INVESTIGATION & ENFORCEMENT SERVICES                                                                ,HOWES PERCIVAL,BA0000273748,"1,392.00",119523573
BIS,The Insolvency Service,28/03/2014,Investigation and Enforcement Costs,INVESTIGATION & ENFORCEMENT SERVICES                                                                ,HOWES PERCIVAL,BA0000273748,"6,993.60",119523573
BIS,The Insolvency Service,11/03/2014,Insolvency Case Related Costs,OFFICIAL RECEIVER SERVICES                                                                          ,HPI LTD,BA0000272886,40.06,942407139
BIS,The Insolvency Service,11/03/2014,Insolvency Case Related Costs,OFFICIAL RECEIVER SERVICES                                                                          ,HPI LTD,BA0000272897,15.52,942407139
BIS,The Insolvency Service,11/03/2014,Insolvency Case Related Costs,OFFICIAL RECEIVER SERVICES                                                                          ,HPI LTD,BA0000272961,94.72,942407139
BIS,The Insolvency Service,13/03/2014,Insolvency Case Related Costs,OFFICIAL RECEIVER SERVICES                                                                          ,HPI LTD,BA0000272896,94.30,942407139
BIS,The Insolvency Service,01/03/2014,Travel and Subsistence,FINANCE AND COMMERCIAL,HRG UK,BA0000273613,-148.70,
BIS,The Insolvency Service,01/03/2014,Travel and Subsistence,FINANCE AND COMMERCIAL,HRG UK,BA0000273613,148.70,
BIS,The Insolvency Service,01/03/2014,Travel and Subsistence,FINANCE AND COMMERCIAL,HRG UK,BA0000273613,-38.95,
BIS,The Insolvency Service,01/03/2014,Travel and Subsistence,FINANCE AND COMMERCIAL,HRG UK,BA0000273613,38.95,
BIS,The Insolvency Service,01/03/2014,Travel and Subsistence,FINANCE AND COMMERCIAL,HRG UK,BA0000273613,5.87,
BIS,The Insolvency Service,01/03/2014,Travel and Subsistence,FINANCE AND COMMERCIAL,HRG UK,BA0000273613,6.54,
BIS,The Insolvency Service,01/03/2014,Travel and Subsistence,FINANCE AND COMMERCIAL,HRG UK,BA0000273613,6.30,
BIS,The Insolvency Service,01/03/2014,Travel and Subsistence,FINANCE AND COMMERCIAL,HRG UK,BA0000273613,6.36,
BIS,The Insolvency Service,01/03/2014,Travel and Subsistence,FINANCE AND COMMERCIAL,HRG UK,BA0000273613,6.42,
BIS,The Insolvency Service,04/03/2014,Agency Workers,FINANCE AND COMMERCIAL,HUDSON GLOBAL RESOURCES LTD,BA0000272688,"1,544.40",
BIS,The Insolvency Service,11/03/2014,Agency Workers,FINANCE AND COMMERCIAL,HUDSON GLOBAL RESOURCES LTD,BA0000272910,"2,257.20",
BIS,The Insolvency Service,14/03/2014,Agency Workers,FINANCE AND COMMERCIAL,HUDSON GLOBAL RESOURCES LTD,BA0000273161,"2,376.00",
BIS,The Insolvency Service,20/03/2014,Employee Related Costs,PEOPLE & CAPABILITY                                                                                 ,HUDSON GLOBAL RESOURCES LTD,BA0000273339,"1,500.00",
BIS,The Insolvency Service,20/03/2014,Employee Related Costs,PEOPLE & CAPABILITY                                                                                 ,HUDSON GLOBAL RESOURCES LTD,BA0000273340,"4,000.00",
BIS,The Insolvency Service,24/03/2014,Agency Workers,FINANCE AND COMMERCIAL,HUDSON GLOBAL RESOURCES LTD,BA0000273492,"2,138.40",
BIS,The Insolvency Service,28/03/2014,Agency Workers,FINANCE AND COMMERCIAL,HUDSON GLOBAL RESOURCES LTD,BA0000273767,"2,257.20",
BIS,The Insolvency Service,04/03/2014,Computer and IT Systems,INFORMATION TECHNOLOGY                                                                              ,IBM UK LTD,BA0000272689,"1,884.91",107328000
BIS,The Insolvency Service,04/03/2014,Computer and IT Systems,INFORMATION TECHNOLOGY                                                                              ,IBM UK LTD,BA0000272689,"5,063.42",107328000
BIS,The Insolvency Service,04/03/2014,Computer and IT Systems,INFORMATION TECHNOLOGY                                                                              ,IBM UK LTD,BA0000272690,"2,607.80",107328000
BIS,The Insolvency Service,04/03/2014,Computer and IT Systems,INFORMATION TECHNOLOGY                                                                              ,IBM UK LTD,BA0000272691,"13,310.57",107328000
BIS,The Insolvency Service,28/03/2014,Computer and IT Systems,INFORMATION TECHNOLOGY                                                                              ,IBM UK LTD,BA0000273736,"198,666.00",107328000
BIS,The Insolvency Service,31/03/2014,Computer and IT Systems,INFORMATION TECHNOLOGY                                                                              ,IMAGESTORE LIMITED                                          ,BA0000273865,"1,430.40",614847430
BIS,The Insolvency Service,11/03/2014,Insolvency Case Related Costs,OFFICIAL RECEIVER SERVICES                                                                          ,INSOLVENCY SERVICE,BA0000272895,80.00,
BIS,The Insolvency Service,20/03/2014,Insolvency Case Related Costs,OFFICIAL RECEIVER SERVICES                                                                          ,INSOLVENCY SERVICE,BA0000273374,80.00,
BIS,The Insolvency Service,28/03/2014,Insolvency Case Related Costs,FINANCE AND COMMERCIAL,INSOLVENCY SERVICE,BA0000273770,"5,453.54",
BIS,The Insolvency Service,31/03/2014,Insolvency Case Related Costs,FINANCE AND COMMERCIAL,INSOLVENCY SERVICE,BA0000273703,"4,529.69",
BIS,The Insolvency Service,21/03/2014,Insolvency Case Related Costs,FINANCE AND COMMERCIAL,INSOLVENCY SERVICE ACCOUNT,BA0000273408,"8,659.10",
BIS,The Insolvency Service,11/03/2014,Agency Workers,FINANCE AND COMMERCIAL,INTERQUEST GROUP (FORMALLY SAND RESOURCES LTD)              ,BA0000272920,"13,430.59",820437161
BIS,The Insolvency Service,11/03/2014,Agency Workers,"PLANNING, PERFORMANCE & PROJECTS                                                                    ",INTERQUEST GROUP (FORMALLY SAND RESOURCES LTD)              ,BA0000272922,"11,152.32",820437161
BIS,The Insolvency Service,11/03/2014,Computer and IT Systems,INFORMATION TECHNOLOGY                                                                              ,INTERQUEST GROUP (FORMALLY SAND RESOURCES LTD)              ,BA0000272934,"10,912.32",820437161
BIS,The Insolvency Service,20/03/2014,Agency Workers,FINANCE AND COMMERCIAL,INTERQUEST GROUP (FORMALLY SAND RESOURCES LTD)              ,BA0000273345,"16,628.35",820437161
BIS,The Insolvency Service,20/03/2014,Computer and IT Systems,INFORMATION TECHNOLOGY                                                                              ,INTERQUEST GROUP (FORMALLY SAND RESOURCES LTD)              ,BA0000273357,"5,001.48",820437161
BIS,The Insolvency Service,07/03/2014,Accommodation,BUSINESS SERVICES DIRECTORATE                                                                       ,IRON MOUNTAIN (UK) LTD,BA0000272844,"1,857.70",607937516
BIS,The Insolvency Service,07/03/2014,Accommodation,CUSTOMER AND COMMUNICATIONS                                                                         ,IRON MOUNTAIN (UK) LTD,BA0000272844,1.48,607937516
BIS,The Insolvency Service,07/03/2014,Accommodation,EXTERNAL AFFAIRS                                                                                    ,IRON MOUNTAIN (UK) LTD,BA0000272844,89.14,607937516
BIS,The Insolvency Service,07/03/2014,Accommodation,INFORMATION TECHNOLOGY                                                                              ,IRON MOUNTAIN (UK) LTD,BA0000272844,157.76,607937516
BIS,The Insolvency Service,07/03/2014,Accommodation,INVESTIGATION & ENFORCEMENT SERVICES                                                                ,IRON MOUNTAIN (UK) LTD,BA0000272844,"2,430.20",607937516
BIS,The Insolvency Service,07/03/2014,Accommodation,PEOPLE & CAPABILITY                                                                                 ,IRON MOUNTAIN (UK) LTD,BA0000272844,49.57,607937516
BIS,The Insolvency Service,07/03/2014,Accommodation,OFFICIAL RECEIVER SERVICES                                                                          ,IRON MOUNTAIN (UK) LTD,BA0000272844,"27,136.33",607937516
BIS,The Insolvency Service,11/03/2014,Accommodation,INVESTIGATION & ENFORCEMENT SERVICES                                                                ,IRON MOUNTAIN (UK) LTD,BA0000272888,778.59,607937516
BIS,The Insolvency Service,31/03/2014,Accommodation,BUSINESS SERVICES DIRECTORATE                                                                       ,IRON MOUNTAIN (UK) LTD,BA0000273905,"1,910.97",607937516
BIS,The Insolvency Service,31/03/2014,Accommodation,CUSTOMER AND COMMUNICATIONS                                                                         ,IRON MOUNTAIN (UK) LTD,BA0000273905,1.47,607937516
BIS,The Insolvency Service,31/03/2014,Accommodation,EXTERNAL AFFAIRS                                                                                    ,IRON MOUNTAIN (UK) LTD,BA0000273905,169.64,607937516
BIS,The Insolvency Service,31/03/2014,Accommodation,INFORMATION TECHNOLOGY                                                                              ,IRON MOUNTAIN (UK) LTD,BA0000273905,143.03,607937516
BIS,The Insolvency Service,31/03/2014,Accommodation,INVESTIGATION & ENFORCEMENT SERVICES                                                                ,IRON MOUNTAIN (UK) LTD,BA0000273905,"2,238.75",607937516
BIS,The Insolvency Service,31/03/2014,Accommodation,PEOPLE & CAPABILITY                                                                                 ,IRON MOUNTAIN (UK) LTD,BA0000273905,57.33,607937516
BIS,The Insolvency Service,31/03/2014,Accommodation,OFFICIAL RECEIVER SERVICES                                                                          ,IRON MOUNTAIN (UK) LTD,BA0000273905,"24,547.16",607937516
BIS,The Insolvency Service,11/03/2014,Accommodation,"PLANNING, PERFORMANCE & PROJECTS                                                                    ",JONES LANG LASALLE,BA0000272812,"9,606.34",245894718
BIS,The Insolvency Service,20/03/2014,Accommodation,ESTATES,JONES LANG LASALLE,BA0000273298,"7,020.00",245894718
BIS,The Insolvency Service,14/03/2014,Office Supplies and Services,OFFICIAL RECEIVER SERVICES                                                                          ,JORDAN PUBLISHING LIMITED,BA0000273127,171.00,137444271
BIS,The Insolvency Service,20/03/2014,Translation Costs,BUSINESS SERVICES DIRECTORATE                                                                       ,K INTERNATIONAL PLC,BA0000273288,103.66,600413800
BIS,The Insolvency Service,20/03/2014,Translation Costs,OFFICIAL RECEIVER SERVICES                                                                          ,K INTERNATIONAL PLC,BA0000273288,"1,326.50",600413800
BIS,The Insolvency Service,20/03/2014,Investigation and Enforcement Costs,INVESTIGATION & ENFORCEMENT SERVICES                                                                ,K INTERNATIONAL PLC,BA0000273288,105.00,600413800
BIS,The Insolvency Service,11/03/2014,Accommodation,BUSINESS SERVICES DIRECTORATE                                                                       ,KALAMAZOO SECURE SOLUTIONS LIMITED,BA0000272941,66.67,616685614
BIS,The Insolvency Service,11/03/2014,Accommodation,FINANCE AND COMMERCIAL,KALAMAZOO SECURE SOLUTIONS LIMITED,BA0000272941,133.33,616685614
BIS,The Insolvency Service,06/03/2014,Telecoms,OFFICIAL RECEIVER SERVICES                                                                          ,KCOM GROUP PLC,BA0000272823,239.70,647235137
BIS,The Insolvency Service,13/03/2014,Accounting and Banking,FINANCE AND COMMERCIAL,KDS UK LTD,BA0000273069,"2,786.40",776463881
BIS,The Insolvency Service,01/03/2014,Office Machinery,FINANCE AND COMMERCIAL,KIDD RAPINET SOLICITORS,BA0000273613,80.47,
BIS,The Insolvency Service,01/03/2014,Insolvency Case Related Costs,OFFICIAL RECEIVER SERVICES                                                                          ,KIOSKO 24 INTERNET                                          ,BA0000273613,49.50,
BIS,The Insolvency Service,13/03/2014,Accounting and Banking,FINANCE AND COMMERCIAL,KYPERA LTD,BA0000273078,"9,062.94",813905437
BIS,The Insolvency Service,28/03/2014,Agency Workers,Change and Workplace Services,LA INTERNATIONAL COMPUTER CONSULTANTS LTD,BA0000273726,"10,495.92",
BIS,The Insolvency Service,11/03/2014,Accommodation,ESTATES,LAMBERT SMITH HAMPTON,BA0000272906,"2,606.90",
BIS,The Insolvency Service,11/03/2014,Accounting and Banking,BUSINESS SERVICES DIRECTORATE                                                                       ,LLOYDS TSB BANK,BA0000272927,"5,000.00",244155576
BIS,The Insolvency Service,01/03/2014,Travel and Subsistence,INVESTIGATION & ENFORCEMENT SERVICES                                                                ,LONDON & SOUTH EAS,BA0000273613,8.90,
BIS,The Insolvency Service,18/03/2014,Insolvency Case Related Costs,OFFICIAL RECEIVER SERVICES                                                                          ,LONDON HOUSE INTERNATIONAL LTD,BA0000273183,"4,710.00",650755433
BIS,The Insolvency Service,18/03/2014,Investigation and Enforcement Costs,INVESTIGATION & ENFORCEMENT SERVICES                                                                ,LONDON HOUSE INTERNATIONAL LTD,BA0000273183,170.00,650755433
BIS,The Insolvency Service,18/03/2014,Investigation and Enforcement Costs,OFFICIAL RECEIVER SERVICES                                                                          ,LONDON HOUSE INTERNATIONAL LTD,BA0000273183,"1,380.00",650755433
BIS,The Insolvency Service,01/03/2014,Travel and Subsistence,INVESTIGATION & ENFORCEMENT SERVICES                                                                ,LUL TICKET MACHINE,BA0000273613,20.00,
BIS,The Insolvency Service,01/03/2014,Travel and Subsistence,OFFICIAL RECEIVER SERVICES                                                                          ,LUL TICKET OFFICE,BA0000273613,9.00,
BIS,The Insolvency Service,01/03/2014,Travel and Subsistence,"PLANNING, PERFORMANCE & PROJECTS                                                                    ",LUL TICKET OFFICE,BA0000273613,10.00,
BIS,The Insolvency Service,18/03/2014,Agency Workers,"PLANNING, PERFORMANCE & PROJECTS                                                                    ",MACE LTD                                                    ,BA0000273264,"12,480.00",
BIS,The Insolvency Service,25/03/2014,Agency Workers,"PLANNING, PERFORMANCE & PROJECTS                                                                    ",MACE LTD                                                    ,BA0000273576,"12,480.00",
BIS,The Insolvency Service,20/03/2014,Accommodation,ESTATES,MARITIME & COASTGUARD AGENCY,BA0000273341,"21,326.63",
BIS,The Insolvency Service,20/03/2014,Accommodation,ESTATES,MARITIME & COASTGUARD AGENCY,BA0000273341,"13,400.00",
BIS,The Insolvency Service,18/03/2014,Investigation and Enforcement Costs,CUSTOMER AND COMMUNICATIONS                                                                         ,MARKET & OPINION RESEARCH INTERNATIONAL LIMITED t/a IPSOS   ,BA0000273263,"3,771.60",
BIS,The Insolvency Service,01/03/2014,Accommodation,OFFICIAL RECEIVER SERVICES                                                                          ,MARKS & SPENCER PLC,BA0000273613,10.85,
BIS,The Insolvency Service,01/03/2014,Office Supplies and Services,BUSINESS SERVICES DIRECTORATE                                                                       ,MARKS & SPENCER PLC,BA0000273613,6.90,
BIS,The Insolvency Service,06/03/2014,Computer and IT Systems,INVESTIGATION & ENFORCEMENT SERVICES                                                                ,MD5 LTD                                                     ,BA0000272798,270.00,
BIS,The Insolvency Service,06/03/2014,Agency Workers,CUSTOMER AND COMMUNICATIONS                                                                         ,MICHAEL PAGE INTERNATIONAL RECRUITMENT LTD,BA0000272755,"1,609.86",354259936
BIS,The Insolvency Service,06/03/2014,Agency Workers,CUSTOMER AND COMMUNICATIONS                                                                         ,MICHAEL PAGE INTERNATIONAL RECRUITMENT LTD,BA0000272815,"1,539.60",354259936
BIS,The Insolvency Service,11/03/2014,Agency Workers,FINANCE AND COMMERCIAL                                                                              ,MICHAEL PAGE INTERNATIONAL RECRUITMENT LTD,BA0000272915,"2,666.40",354259936
BIS,The Insolvency Service,11/03/2014,Agency Workers,CUSTOMER AND COMMUNICATIONS                                                                         ,MICHAEL PAGE INTERNATIONAL RECRUITMENT LTD,BA0000272948,"1,609.86",354259936
BIS,The Insolvency Service,11/03/2014,Agency Workers,CUSTOMER AND COMMUNICATIONS                                                                         ,MICHAEL PAGE INTERNATIONAL RECRUITMENT LTD,BA0000272949,"1,539.60",354259936
BIS,The Insolvency Service,13/03/2014,Agency Workers,CUSTOMER AND COMMUNICATIONS                                                                         ,MICHAEL PAGE INTERNATIONAL RECRUITMENT LTD,BA0000272998,"1,650.06",354259936
BIS,The Insolvency Service,14/03/2014,Agency Workers,FINANCE AND COMMERCIAL                                                                              ,MICHAEL PAGE INTERNATIONAL RECRUITMENT LTD,BA0000273162,"2,666.40",354259936
BIS,The Insolvency Service,18/03/2014,Agency Workers,CUSTOMER AND COMMUNICATIONS                                                                         ,MICHAEL PAGE INTERNATIONAL RECRUITMENT LTD,BA0000273199,"1,609.86",354259936
BIS,The Insolvency Service,18/03/2014,Agency Workers,CUSTOMER AND COMMUNICATIONS                                                                         ,MICHAEL PAGE INTERNATIONAL RECRUITMENT LTD,BA0000273206,"1,539.60",354259936
BIS,The Insolvency Service,20/03/2014,Agency Workers,CUSTOMER AND COMMUNICATIONS                                                                         ,MICHAEL PAGE INTERNATIONAL RECRUITMENT LTD,BA0000273305,"1,650.06",354259936
BIS,The Insolvency Service,24/03/2014,Agency Workers,FINANCE AND COMMERCIAL                                                                              ,MICHAEL PAGE INTERNATIONAL RECRUITMENT LTD,BA0000273410,"2,666.40",354259936
BIS,The Insolvency Service,24/03/2014,Agency Workers,CUSTOMER AND COMMUNICATIONS                                                                         ,MICHAEL PAGE INTERNATIONAL RECRUITMENT LTD,BA0000273460,"1,320.05",354259936
BIS,The Insolvency Service,24/03/2014,Agency Workers,CUSTOMER AND COMMUNICATIONS                                                                         ,MICHAEL PAGE INTERNATIONAL RECRUITMENT LTD,BA0000273448,"1,650.06",354259936
BIS,The Insolvency Service,25/03/2014,Agency Workers,CUSTOMER AND COMMUNICATIONS                                                                         ,MICHAEL PAGE INTERNATIONAL RECRUITMENT LTD,BA0000273596,"2,640.00",354259936
BIS,The Insolvency Service,25/03/2014,Agency Workers,CUSTOMER AND COMMUNICATIONS                                                                         ,MICHAEL PAGE INTERNATIONAL RECRUITMENT LTD,BA0000273590,"1,609.86",354259936
BIS,The Insolvency Service,25/03/2014,Agency Workers,CUSTOMER AND COMMUNICATIONS                                                                         ,MICHAEL PAGE INTERNATIONAL RECRUITMENT LTD,BA0000273580,"1,539.60",354259936
BIS,The Insolvency Service,28/03/2014,Agency Workers,FINANCE AND COMMERCIAL                                                                              ,MICHAEL PAGE INTERNATIONAL RECRUITMENT LTD,BA0000273769,"2,666.40",354259936
BIS,The Insolvency Service,31/03/2014,Agency Workers,CUSTOMER AND COMMUNICATIONS                                                                         ,MICHAEL PAGE INTERNATIONAL RECRUITMENT LTD,BA0000273869,"1,609.86",354259936
BIS,The Insolvency Service,24/03/2014,Accommodation,ESTATES,MIDDLESBROUGH COUNCIL                                       ,BA0000273476,256.92,734213854
BIS,The Insolvency Service,25/03/2014,Insolvency Case Related Costs,BUSINESS SERVICES DIRECTORATE                                                                       ,MONEY ADVICE TRUST,BA0000273510,"6,280.00",
BIS,The Insolvency Service,01/03/2014,Computer and IT Systems,FINANCE AND COMMERCIAL,MOREFROM.CO.UK                                              ,BA0000273613,317.50,
BIS,The Insolvency Service,20/03/2014,Department for Business Innovation and Skills,"PLANNING, PERFORMANCE & PROJECTS                                                                    ",MYCSP LTD,BA0000273307,"3,257.64",
BIS,The Insolvency Service,20/03/2014,Department for Business Innovation and Skills,"PLANNING, PERFORMANCE & PROJECTS                                                                    ",MYCSP LTD,BA0000273308,"3,454.08",
BIS,The Insolvency Service,20/03/2014,Department for Business Innovation and Skills,"PLANNING, PERFORMANCE & PROJECTS                                                                    ",MYCSP LTD,BA0000273352,"5,427.84",
BIS,The Insolvency Service,20/03/2014,Department for Business Innovation and Skills,"PLANNING, PERFORMANCE & PROJECTS                                                                    ",MYCSP LTD,BA0000273331,"20,867.82",
BIS,The Insolvency Service,25/03/2014,Insolvency Case Related Costs,BUSINESS SERVICES DIRECTORATE                                                                       ,NATIONAL ASSOCIATION OF CITIZENS ADVICE BUREAU,BA0000273572,"64,490.00",726020276
BIS,The Insolvency Service,25/03/2014,Accommodation,ESTATES,NATIONAL RECORD OF SCOTLAND,BA0000273485,"72,705.00",888842061
BIS,The Insolvency Service,25/03/2014,Accommodation,ESTATES,NATIONAL RECORD OF SCOTLAND,BA0000273486,"27,050.63",888842061
BIS,The Insolvency Service,25/03/2014,Accommodation,ESTATES,NATIONAL RECORD OF SCOTLAND,BA0000273487,"28,865.24",888842061
BIS,The Insolvency Service,25/03/2014,Accommodation,ESTATES,NATIONAL RECORD OF SCOTLAND,BA0000273447,"34,813.55",888842061
BIS,The Insolvency Service,01/03/2014,Travel and Subsistence,OFFICIAL RECEIVER SERVICES                                                                          ,NCP PARKING,BA0000273613,6.00,
BIS,The Insolvency Service,01/03/2014,Travel and Subsistence,OFFICIAL RECEIVER SERVICES                                                                          ,NCP PARKING,BA0000273613,6.00,
BIS,The Insolvency Service,01/03/2014,Travel and Subsistence,OFFICIAL RECEIVER SERVICES                                                                          ,NCP PARKING,BA0000273613,6.00,
BIS,The Insolvency Service,04/03/2014,Office Machinery,INFORMATION TECHNOLOGY                                                                              ,NEOPOST  LIMITED,BA0000272739,"3,018.00",805644140
BIS,The Insolvency Service,14/03/2014,Postage,"PLANNING, PERFORMANCE & PROJECTS                                                                    ",NEOPOST  LIMITED,BA0000273158,48.00,597265489
BIS,The Insolvency Service,24/03/2014,Office Supplies and Services,OFFICIAL RECEIVER SERVICES                                                                          ,NEOPOST  LIMITED,BA0000273404,204.59,597265489
BIS,The Insolvency Service,28/03/2014,Office Supplies and Services,OFFICIAL RECEIVER SERVICES                                                                          ,NEOPOST  LIMITED,BA0000273777,148.79,597265489
BIS,The Insolvency Service,04/03/2014,Postage,BUSINESS SERVICES DIRECTORATE                                                                       ,NEOPOST LTD - FRANKING TOP UPS,BA0000272737,800.00,
BIS,The Insolvency Service,04/03/2014,Postage,INFORMATION TECHNOLOGY                                                                              ,NEOPOST LTD - FRANKING TOP UPS,BA0000272737,"5,000.00",
BIS,The Insolvency Service,04/03/2014,Postage,OFFICIAL RECEIVER SERVICES                                                                          ,NEOPOST LTD - FRANKING TOP UPS,BA0000272737,100.00,
BIS,The Insolvency Service,04/03/2014,Postage,OFFICIAL RECEIVER SERVICES                                                                          ,NEOPOST LTD - FRANKING TOP UPS,BA0000272737,100.00,
BIS,The Insolvency Service,04/03/2014,Postage,OFFICIAL RECEIVER SERVICES                                                                          ,NEOPOST LTD - FRANKING TOP UPS,BA0000272737,150.00,
BIS,The Insolvency Service,04/03/2014,Postage,OFFICIAL RECEIVER SERVICES                                                                          ,NEOPOST LTD - FRANKING TOP UPS,BA0000272737,182.00,
BIS,The Insolvency Service,04/03/2014,Postage,OFFICIAL RECEIVER SERVICES                                                                          ,NEOPOST LTD - FRANKING TOP UPS,BA0000272737,200.00,
BIS,The Insolvency Service,04/03/2014,Postage,OFFICIAL RECEIVER SERVICES                                                                          ,NEOPOST LTD - FRANKING TOP UPS,BA0000272737,205.00,
BIS,The Insolvency Service,04/03/2014,Postage,OFFICIAL RECEIVER SERVICES                                                                          ,NEOPOST LTD - FRANKING TOP UPS,BA0000272737,230.00,
BIS,The Insolvency Service,04/03/2014,Postage,OFFICIAL RECEIVER SERVICES                                                                          ,NEOPOST LTD - FRANKING TOP UPS,BA0000272737,270.00,
BIS,The Insolvency Service,04/03/2014,Postage,OFFICIAL RECEIVER SERVICES                                                                          ,NEOPOST LTD - FRANKING TOP UPS,BA0000272737,295.00,
BIS,The Insolvency Service,04/03/2014,Postage,OFFICIAL RECEIVER SERVICES                                                                          ,NEOPOST LTD - FRANKING TOP UPS,BA0000272737,500.00,
BIS,The Insolvency Service,04/03/2014,Postage,OFFICIAL RECEIVER SERVICES                                                                          ,NEOPOST LTD - FRANKING TOP UPS,BA0000272737,500.00,
BIS,The Insolvency Service,04/03/2014,Postage,OFFICIAL RECEIVER SERVICES                                                                          ,NEOPOST LTD - FRANKING TOP UPS,BA0000272737,518.00,
BIS,The Insolvency Service,04/03/2014,Postage,OFFICIAL RECEIVER SERVICES                                                                          ,NEOPOST LTD - FRANKING TOP UPS,BA0000272737,600.00,
BIS,The Insolvency Service,04/03/2014,Postage,OFFICIAL RECEIVER SERVICES                                                                          ,NEOPOST LTD - FRANKING TOP UPS,BA0000272737,"1,000.00",
BIS,The Insolvency Service,04/03/2014,Postage,OFFICIAL RECEIVER SERVICES                                                                          ,NEOPOST LTD - FRANKING TOP UPS,BA0000272737,"1,000.00",
BIS,The Insolvency Service,04/03/2014,Postage,OFFICIAL RECEIVER SERVICES                                                                          ,NEOPOST LTD - FRANKING TOP UPS,BA0000272737,"1,000.00",
BIS,The Insolvency Service,18/03/2014,Postage,INFORMATION TECHNOLOGY                                                                              ,NEOPOST LTD - FRANKING TOP UPS,BA0000273266,"1,000.00",
BIS,The Insolvency Service,18/03/2014,Postage,OFFICIAL RECEIVER SERVICES                                                                          ,NEOPOST LTD - FRANKING TOP UPS,BA0000273266,24.00,
BIS,The Insolvency Service,18/03/2014,Postage,OFFICIAL RECEIVER SERVICES                                                                          ,NEOPOST LTD - FRANKING TOP UPS,BA0000273266,66.00,
BIS,The Insolvency Service,18/03/2014,Postage,OFFICIAL RECEIVER SERVICES                                                                          ,NEOPOST LTD - FRANKING TOP UPS,BA0000273266,100.00,
BIS,The Insolvency Service,18/03/2014,Postage,OFFICIAL RECEIVER SERVICES                                                                          ,NEOPOST LTD - FRANKING TOP UPS,BA0000273266,100.00,
BIS,The Insolvency Service,18/03/2014,Postage,OFFICIAL RECEIVER SERVICES                                                                          ,NEOPOST LTD - FRANKING TOP UPS,BA0000273266,150.00,
BIS,The Insolvency Service,18/03/2014,Postage,OFFICIAL RECEIVER SERVICES                                                                          ,NEOPOST LTD - FRANKING TOP UPS,BA0000273266,182.00,
BIS,The Insolvency Service,18/03/2014,Postage,OFFICIAL RECEIVER SERVICES                                                                          ,NEOPOST LTD - FRANKING TOP UPS,BA0000273266,200.00,
BIS,The Insolvency Service,18/03/2014,Postage,OFFICIAL RECEIVER SERVICES                                                                          ,NEOPOST LTD - FRANKING TOP UPS,BA0000273266,200.00,
BIS,The Insolvency Service,18/03/2014,Postage,OFFICIAL RECEIVER SERVICES                                                                          ,NEOPOST LTD - FRANKING TOP UPS,BA0000273266,205.00,
BIS,The Insolvency Service,18/03/2014,Postage,OFFICIAL RECEIVER SERVICES                                                                          ,NEOPOST LTD - FRANKING TOP UPS,BA0000273266,230.00,
BIS,The Insolvency Service,18/03/2014,Postage,OFFICIAL RECEIVER SERVICES                                                                          ,NEOPOST LTD - FRANKING TOP UPS,BA0000273266,243.00,
BIS,The Insolvency Service,18/03/2014,Postage,OFFICIAL RECEIVER SERVICES                                                                          ,NEOPOST LTD - FRANKING TOP UPS,BA0000273266,270.00,
BIS,The Insolvency Service,18/03/2014,Postage,OFFICIAL RECEIVER SERVICES                                                                          ,NEOPOST LTD - FRANKING TOP UPS,BA0000273266,295.00,
BIS,The Insolvency Service,18/03/2014,Postage,OFFICIAL RECEIVER SERVICES                                                                          ,NEOPOST LTD - FRANKING TOP UPS,BA0000273266,500.00,
BIS,The Insolvency Service,18/03/2014,Postage,OFFICIAL RECEIVER SERVICES                                                                          ,NEOPOST LTD - FRANKING TOP UPS,BA0000273266,518.00,
BIS,The Insolvency Service,18/03/2014,Postage,OFFICIAL RECEIVER SERVICES                                                                          ,NEOPOST LTD - FRANKING TOP UPS,BA0000273266,600.00,
BIS,The Insolvency Service,18/03/2014,Postage,OFFICIAL RECEIVER SERVICES                                                                          ,NEOPOST LTD - FRANKING TOP UPS,BA0000273266,657.00,
BIS,The Insolvency Service,18/03/2014,Postage,OFFICIAL RECEIVER SERVICES                                                                          ,NEOPOST LTD - FRANKING TOP UPS,BA0000273266,700.00,
BIS,The Insolvency Service,18/03/2014,Postage,OFFICIAL RECEIVER SERVICES                                                                          ,NEOPOST LTD - FRANKING TOP UPS,BA0000273266,800.00,
BIS,The Insolvency Service,18/03/2014,Postage,OFFICIAL RECEIVER SERVICES                                                                          ,NEOPOST LTD - FRANKING TOP UPS,BA0000273266,900.00,
BIS,The Insolvency Service,18/03/2014,Postage,OFFICIAL RECEIVER SERVICES                                                                          ,NEOPOST LTD - FRANKING TOP UPS,BA0000273266,"1,000.00",
BIS,The Insolvency Service,20/03/2014,Postage,BUSINESS SERVICES DIRECTORATE                                                                       ,NEOPOST LTD - FRANKING TOP UPS,BA0000273361,800.00,
BIS,The Insolvency Service,20/03/2014,Postage,INFORMATION TECHNOLOGY                                                                              ,NEOPOST LTD - FRANKING TOP UPS,BA0000273361,"5,000.00",
BIS,The Insolvency Service,20/03/2014,Postage,OFFICIAL RECEIVER SERVICES                                                                          ,NEOPOST LTD - FRANKING TOP UPS,BA0000273361,50.00,
BIS,The Insolvency Service,20/03/2014,Postage,OFFICIAL RECEIVER SERVICES                                                                          ,NEOPOST LTD - FRANKING TOP UPS,BA0000273361,100.00,
BIS,The Insolvency Service,20/03/2014,Postage,OFFICIAL RECEIVER SERVICES                                                                          ,NEOPOST LTD - FRANKING TOP UPS,BA0000273361,100.00,
BIS,The Insolvency Service,20/03/2014,Postage,OFFICIAL RECEIVER SERVICES                                                                          ,NEOPOST LTD - FRANKING TOP UPS,BA0000273361,150.00,
BIS,The Insolvency Service,20/03/2014,Postage,OFFICIAL RECEIVER SERVICES                                                                          ,NEOPOST LTD - FRANKING TOP UPS,BA0000273361,182.00,
BIS,The Insolvency Service,20/03/2014,Postage,OFFICIAL RECEIVER SERVICES                                                                          ,NEOPOST LTD - FRANKING TOP UPS,BA0000273361,200.00,
BIS,The Insolvency Service,20/03/2014,Postage,OFFICIAL RECEIVER SERVICES                                                                          ,NEOPOST LTD - FRANKING TOP UPS,BA0000273361,205.00,
BIS,The Insolvency Service,20/03/2014,Postage,OFFICIAL RECEIVER SERVICES                                                                          ,NEOPOST LTD - FRANKING TOP UPS,BA0000273361,230.00,
BIS,The Insolvency Service,20/03/2014,Postage,OFFICIAL RECEIVER SERVICES                                                                          ,NEOPOST LTD - FRANKING TOP UPS,BA0000273361,270.00,
BIS,The Insolvency Service,20/03/2014,Postage,OFFICIAL RECEIVER SERVICES                                                                          ,NEOPOST LTD - FRANKING TOP UPS,BA0000273361,295.00,
BIS,The Insolvency Service,20/03/2014,Postage,OFFICIAL RECEIVER SERVICES                                                                          ,NEOPOST LTD - FRANKING TOP UPS,BA0000273361,500.00,
BIS,The Insolvency Service,20/03/2014,Postage,OFFICIAL RECEIVER SERVICES                                                                          ,NEOPOST LTD - FRANKING TOP UPS,BA0000273361,500.00,
BIS,The Insolvency Service,20/03/2014,Postage,OFFICIAL RECEIVER SERVICES                                                                          ,NEOPOST LTD - FRANKING TOP UPS,BA0000273361,500.00,
BIS,The Insolvency Service,20/03/2014,Postage,OFFICIAL RECEIVER SERVICES                                                                          ,NEOPOST LTD - FRANKING TOP UPS,BA0000273361,518.00,
BIS,The Insolvency Service,20/03/2014,Postage,OFFICIAL RECEIVER SERVICES                                                                          ,NEOPOST LTD - FRANKING TOP UPS,BA0000273361,"1,000.00",
BIS,The Insolvency Service,20/03/2014,Postage,OFFICIAL RECEIVER SERVICES                                                                          ,NEOPOST LTD - FRANKING TOP UPS,BA0000273361,"1,000.00",
BIS,The Insolvency Service,27/03/2014,Postage,BUSINESS SERVICES DIRECTORATE                                                                       ,NEOPOST LTD - FRANKING TOP UPS,BA0000273694,800.00,
BIS,The Insolvency Service,27/03/2014,Postage,BUSINESS SERVICES DIRECTORATE                                                                       ,NEOPOST LTD - FRANKING TOP UPS,BA0000273694,"1,000.00",
BIS,The Insolvency Service,27/03/2014,Postage,OFFICIAL RECEIVER SERVICES                                                                          ,NEOPOST LTD - FRANKING TOP UPS,BA0000273694,150.00,
BIS,The Insolvency Service,27/03/2014,Postage,OFFICIAL RECEIVER SERVICES                                                                          ,NEOPOST LTD - FRANKING TOP UPS,BA0000273694,200.00,
BIS,The Insolvency Service,27/03/2014,Postage,OFFICIAL RECEIVER SERVICES                                                                          ,NEOPOST LTD - FRANKING TOP UPS,BA0000273694,200.00,
BIS,The Insolvency Service,27/03/2014,Postage,OFFICIAL RECEIVER SERVICES                                                                          ,NEOPOST LTD - FRANKING TOP UPS,BA0000273694,205.00,
BIS,The Insolvency Service,27/03/2014,Postage,OFFICIAL RECEIVER SERVICES                                                                          ,NEOPOST LTD - FRANKING TOP UPS,BA0000273694,230.00,
BIS,The Insolvency Service,27/03/2014,Postage,OFFICIAL RECEIVER SERVICES                                                                          ,NEOPOST LTD - FRANKING TOP UPS,BA0000273694,243.00,
BIS,The Insolvency Service,27/03/2014,Postage,OFFICIAL RECEIVER SERVICES                                                                          ,NEOPOST LTD - FRANKING TOP UPS,BA0000273694,270.00,
BIS,The Insolvency Service,27/03/2014,Postage,OFFICIAL RECEIVER SERVICES                                                                          ,NEOPOST LTD - FRANKING TOP UPS,BA0000273694,295.00,
BIS,The Insolvency Service,27/03/2014,Postage,OFFICIAL RECEIVER SERVICES                                                                          ,NEOPOST LTD - FRANKING TOP UPS,BA0000273694,500.00,
BIS,The Insolvency Service,27/03/2014,Postage,OFFICIAL RECEIVER SERVICES                                                                          ,NEOPOST LTD - FRANKING TOP UPS,BA0000273694,500.00,
BIS,The Insolvency Service,27/03/2014,Postage,OFFICIAL RECEIVER SERVICES                                                                          ,NEOPOST LTD - FRANKING TOP UPS,BA0000273694,600.00,
BIS,The Insolvency Service,27/03/2014,Postage,OFFICIAL RECEIVER SERVICES                                                                          ,NEOPOST LTD - FRANKING TOP UPS,BA0000273694,657.00,
BIS,The Insolvency Service,27/03/2014,Postage,OFFICIAL RECEIVER SERVICES                                                                          ,NEOPOST LTD - FRANKING TOP UPS,BA0000273694,700.00,
BIS,The Insolvency Service,27/03/2014,Postage,OFFICIAL RECEIVER SERVICES                                                                          ,NEOPOST LTD - FRANKING TOP UPS,BA0000273694,900.00,
BIS,The Insolvency Service,27/03/2014,Postage,OFFICIAL RECEIVER SERVICES                                                                          ,NEOPOST LTD - FRANKING TOP UPS,BA0000273694,"1,000.00",
BIS,The Insolvency Service,27/03/2014,Postage,OFFICIAL RECEIVER SERVICES                                                                          ,NEOPOST LTD - FRANKING TOP UPS,BA0000273694,"1,000.00",
BIS,The Insolvency Service,13/03/2014,Agency Workers,Change and Workplace Services,NETWORKERS INTERNATIONAL PLC,BA0000273033,"2,162.22",766375002
BIS,The Insolvency Service,13/03/2014,Agency Workers,Change and Workplace Services,NETWORKERS INTERNATIONAL PLC,BA0000273068,"2,162.22",766375002
BIS,The Insolvency Service,24/03/2014,Agency Workers,Change and Workplace Services,NETWORKERS INTERNATIONAL PLC,BA0000273497,"2,848.02",766375002
BIS,The Insolvency Service,24/03/2014,Agency Workers,FINANCE AND COMMERCIAL,NETWORKERS INTERNATIONAL PLC,BA0000273498,"3,243.30",766375002
BIS,The Insolvency Service,24/03/2014,Agency Workers,FINANCE AND COMMERCIAL,NETWORKERS INTERNATIONAL PLC,BA0000273500,"3,243.30",766375002
BIS,The Insolvency Service,24/03/2014,Agency Workers,"PLANNING, PERFORMANCE & PROJECTS                                                                    ",NETWORKERS INTERNATIONAL PLC,BA0000273490,"2,162.22",766375002
BIS,The Insolvency Service,28/03/2014,Agency Workers,Change and Workplace Services,NETWORKERS INTERNATIONAL PLC,BA0000273766,"1,708.81",766375002
BIS,The Insolvency Service,28/03/2014,Agency Workers,"PLANNING, PERFORMANCE & PROJECTS                                                                    ",NETWORKERS INTERNATIONAL PLC,BA0000273750,"2,162.22",766375002
BIS,The Insolvency Service,28/03/2014,Agency Workers,"PLANNING, PERFORMANCE & PROJECTS                                                                    ",NETWORKERS INTERNATIONAL PLC,BA0000273771,"2,162.22",766375002
BIS,The Insolvency Service,07/03/2014,Accommodation,"PLANNING, PERFORMANCE & PROJECTS                                                                    ",NINE TELECOM,BA0000272865,"7,406.40",886132113
BIS,The Insolvency Service,07/03/2014,Telecoms,INFORMATION TECHNOLOGY                                                                              ,NINE TELECOM,BA0000272849,"1,365.00",886132113
BIS,The Insolvency Service,07/03/2014,Telecoms,INFORMATION TECHNOLOGY                                                                              ,NINE TELECOM,BA0000272851,"5,610.00",886132113
BIS,The Insolvency Service,11/03/2014,Computer and IT Systems,INFORMATION TECHNOLOGY                                                                              ,NINE TELECOM,BA0000272900,35.99,886132113
BIS,The Insolvency Service,11/03/2014,Computer and IT Systems,INFORMATION TECHNOLOGY                                                                              ,NINE TELECOM,BA0000272903,35.99,886132113
BIS,The Insolvency Service,25/03/2014,Computer and IT Systems,INFORMATION TECHNOLOGY                                                                              ,NINE TELECOM,BA0000273600,35.99,886132113
BIS,The Insolvency Service,26/03/2014,Computer and IT Systems,INFORMATION TECHNOLOGY                                                                              ,NINE TELECOM,BA0000273632,40.79,886132113
BIS,The Insolvency Service,26/03/2014,Computer and IT Systems,INFORMATION TECHNOLOGY                                                                              ,NINE TELECOM,BA0000273633,71.60,886132113
BIS,The Insolvency Service,28/03/2014,Telecoms,INFORMATION TECHNOLOGY                                                                              ,NINE TELECOM - NINE SERVICES LTD                            ,BA0000273783,390.00,886132113
BIS,The Insolvency Service,31/03/2014,Telecoms,OFFICIAL RECEIVER SERVICES                                                                          ,NINE TELECOM - NINE SERVICES LTD                            ,BA0000273864,198.00,886132113
BIS,The Insolvency Service,28/03/2014,Training Costs,PEOPLE & CAPABILITY                                                                                 ,NORTH GROVE CONSULTANCY LTD,BA0000273773,204.20,825581516
BIS,The Insolvency Service,18/03/2014,Computer and IT Systems,BUSINESS SERVICES DIRECTORATE                                                                       ,NORTHGATE INFORMATION SOLUTIONS UK LTD.,BA0000273204,"8,400.00",207588545
BIS,The Insolvency Service,18/03/2014,Computer and IT Systems,BUSINESS SERVICES DIRECTORATE                                                                       ,NORTHGATE INFORMATION SOLUTIONS UK LTD.,BA0000273205,"34,266.32",207588545
BIS,The Insolvency Service,24/03/2014,Computer and IT Systems,"PLANNING, PERFORMANCE & PROJECTS                                                                    ",NORTHGATE INFORMATION SOLUTIONS UK LTD.,BA0000273493,"4,975.20",207588545
BIS,The Insolvency Service,27/03/2014,Computer and IT Systems,"PLANNING, PERFORMANCE & PROJECTS                                                                    ",NORTHGATE INFORMATION SOLUTIONS UK LTD.,BA0000273670,"2,665.20",207588545
BIS,The Insolvency Service,27/03/2014,Computer and IT Systems,"PLANNING, PERFORMANCE & PROJECTS                                                                    ",NORTHGATE INFORMATION SOLUTIONS UK LTD.,BA0000273671,"6,982.80",207588545
BIS,The Insolvency Service,25/03/2014,Accommodation,ESTATES,NORTHUMBRIAN WATER,BA0000273556,118.90,499980359
BIS,The Insolvency Service,01/03/2014,Travel and Subsistence,INVESTIGATION & ENFORCEMENT SERVICES                                                                ,NORWICH AIRPORT                                             ,BA0000273613,10.00,
BIS,The Insolvency Service,04/03/2014,Accommodation,ESTATES,NPOWER,BA0000272751,34.00,
BIS,The Insolvency Service,04/03/2014,Accommodation,ESTATES,NPOWER,BA0000272751,205.65,
BIS,The Insolvency Service,04/03/2014,Accommodation,ESTATES,NPOWER,BA0000272751,270.34,
BIS,The Insolvency Service,11/03/2014,Accommodation,ESTATES,NPOWER BUSINESS,BA0000272967,"3,890.07",768362492
BIS,The Insolvency Service,11/03/2014,Accommodation,ESTATES,NPOWER BUSINESS,BA0000272980,12.89,768362492
BIS,The Insolvency Service,11/03/2014,Accommodation,ESTATES,NPOWER BUSINESS,BA0000272921,"4,930.82",768362492
BIS,The Insolvency Service,14/03/2014,Accommodation,ESTATES,NPOWER BUSINESS,BA0000273152,"3,240.13",768362492
BIS,The Insolvency Service,28/03/2014,Agency Workers,"PLANNING, PERFORMANCE & PROJECTS                                                                    ",NTT DATA UK                                                 ,BA0000273761,"15,598.80",413575167
BIS,The Insolvency Service,28/03/2014,Agency Workers,"PLANNING, PERFORMANCE & PROJECTS                                                                    ",NTT DATA UK                                                 ,BA0000273793,"14,856.00",413575167
BIS,The Insolvency Service,28/03/2014,Agency Workers,"PLANNING, PERFORMANCE & PROJECTS                                                                    ",NTT DATA UK                                                 ,BA0000273794,"11,142.00",413575167
BIS,The Insolvency Service,28/03/2014,Agency Workers,"PLANNING, PERFORMANCE & PROJECTS                                                                    ",NTT DATA UK                                                 ,BA0000273799,"15,598.80",413575167
BIS,The Insolvency Service,28/03/2014,Agency Workers,"PLANNING, PERFORMANCE & PROJECTS                                                                    ",NTT DATA UK                                                 ,BA0000273804,"15,598.80",413575167
BIS,The Insolvency Service,31/03/2014,Agency Workers,"PLANNING, PERFORMANCE & PROJECTS                                                                    ",NTT DATA UK                                                 ,BA0000273827,"14,856.00",413575167
BIS,The Insolvency Service,31/03/2014,Agency Workers,"PLANNING, PERFORMANCE & PROJECTS                                                                    ",NTT DATA UK                                                 ,BA0000273831,"10,560.00",413575167
BIS,The Insolvency Service,31/03/2014,Agency Workers,"PLANNING, PERFORMANCE & PROJECTS                                                                    ",NTT DATA UK                                                 ,BA0000273832,"13,200.00",413575167
BIS,The Insolvency Service,31/03/2014,Agency Workers,"PLANNING, PERFORMANCE & PROJECTS                                                                    ",NTT DATA UK                                                 ,BA0000273838,"13,860.00",413575167
BIS,The Insolvency Service,31/03/2014,Agency Workers,"PLANNING, PERFORMANCE & PROJECTS                                                                    ",NTT DATA UK                                                 ,BA0000273839,"13,200.00",413575167
BIS,The Insolvency Service,31/03/2014,Agency Workers,"PLANNING, PERFORMANCE & PROJECTS                                                                    ",NTT DATA UK                                                 ,BA0000273840,"9,900.00",413575167
BIS,The Insolvency Service,31/03/2014,Agency Workers,"PLANNING, PERFORMANCE & PROJECTS                                                                    ",NTT DATA UK                                                 ,BA0000273842,"14,520.00",413575167
BIS,The Insolvency Service,13/03/2014,Telecoms,BUSINESS SERVICES DIRECTORATE                                                                       ,O2 (UK) LTD,BA0000273091,38.82,778603785
BIS,The Insolvency Service,13/03/2014,Telecoms,INVESTIGATION & ENFORCEMENT SERVICES                                                                ,O2 (UK) LTD,BA0000273091,42.72,778603785
BIS,The Insolvency Service,25/03/2014,Research Costs,EXTERNAL AFFAIRS                                                                                    ,ONS,BA0000273247,350.00,GD460
BIS,The Insolvency Service,26/03/2014,Agency Workers,"PLANNING, PERFORMANCE & PROJECTS                                                                    ",ORGANISATIONAL EFFICIENCY SOLUTIONS LTD                     ,BA0000273644,209.40,12139025
BIS,The Insolvency Service,01/03/2014,Travel and Subsistence,EXTERNAL AFFAIRS                                                                                    ,OYSTER AUTO TOP UP,BA0000273613,20.00,
BIS,The Insolvency Service,01/03/2014,Travel and Subsistence,OFFICIAL RECEIVER SERVICES                                                                          ,OYSTER AUTO TOP UP,BA0000273613,20.00,
BIS,The Insolvency Service,01/03/2014,Travel and Subsistence,OFFICIAL RECEIVER SERVICES                                                                          ,OYSTER AUTO TOP UP,BA0000273613,20.00,
BIS,The Insolvency Service,01/03/2014,Travel and Subsistence,EXTERNAL AFFAIRS                                                                                    ,OYSTER AUTO TOP UP,BA0000273613,20.00,
BIS,The Insolvency Service,01/03/2014,Travel and Subsistence,EXTERNAL AFFAIRS                                                                                    ,OYSTER AUTO TOP UP,BA0000273613,20.00,
BIS,The Insolvency Service,01/03/2014,Travel and Subsistence,OFFICIAL RECEIVER SERVICES                                                                          ,OYSTER AUTO TOP UP,BA0000273613,20.00,
BIS,The Insolvency Service,01/03/2014,Travel and Subsistence,EXTERNAL AFFAIRS                                                                                    ,OYSTER AUTO TOP UP,BA0000273613,20.00,
BIS,The Insolvency Service,01/03/2014,Travel and Subsistence,OFFICIAL RECEIVER SERVICES                                                                          ,OYSTER AUTO TOP UP,BA0000273613,20.00,
BIS,The Insolvency Service,01/03/2014,Travel and Subsistence,OFFICIAL RECEIVER SERVICES                                                                          ,OYSTER AUTO TOP UP,BA0000273613,20.00,
BIS,The Insolvency Service,25/03/2014,Research Costs,CUSTOMER AND COMMUNICATIONS                                                                         ,PANLOGIC LTD                                                ,BA0000273595,"19,700.00",735796977
BIS,The Insolvency Service,14/03/2014,Insolvency Case Related Costs,OFFICIAL RECEIVER SERVICES                                                                          ,PARCELFORCE WORLDWIDE,BA0000273156,504.97,243170002
BIS,The Insolvency Service,25/03/2014,Computer and IT Systems,INFORMATION TECHNOLOGY                                                                              ,PARITY RESOURCES LTD,BA0000273592,"18,628.44",649913985
BIS,The Insolvency Service,25/03/2014,Computer and IT Systems,INFORMATION TECHNOLOGY                                                                              ,PARITY RESOURCES LTD,BA0000273593,"13,489.56",649913985
BIS,The Insolvency Service,25/03/2014,Computer and IT Systems,INFORMATION TECHNOLOGY                                                                              ,PARITY RESOURCES LTD,BA0000273594,"15,095.46",649913985
BIS,The Insolvency Service,28/03/2014,Computer and IT Systems,INFORMATION TECHNOLOGY                                                                              ,PARITY RESOURCES LTD,BA0000273725,"10,058.93",649913985
BIS,The Insolvency Service,04/03/2014,Accommodation,ESTATES,PATEL BROTHERS LIMITED,BA0000272685,"15,170.40",535685320
BIS,The Insolvency Service,31/03/2014,Accommodation,ESTATES,PAVILION ASSET INVESTMENTS LTD                              ,BA0000273860,"32,000.00",931509729
BIS,The Insolvency Service,01/03/2014,Travel and Subsistence,OFFICIAL RECEIVER SERVICES                                                                          ,PAYBYPHONE PARKING,BA0000273613,6.30,
BIS,The Insolvency Service,01/03/2014,Travel and Subsistence,OFFICIAL RECEIVER SERVICES                                                                          ,PAYBYPHONE PARKING,BA0000273613,6.30,
BIS,The Insolvency Service,01/03/2014,Travel and Subsistence,OFFICIAL RECEIVER SERVICES                                                                          ,PAYBYPHONE PARKING,BA0000273613,12.20,
BIS,The Insolvency Service,24/03/2014,Training Costs,PEOPLE & CAPABILITY                                                                                 ,PCC FOR GREATER MANCHESTER                                  ,BA0000273496,"1,470.00",437607048
BIS,The Insolvency Service,18/03/2014,Travel and Subsistence,FINANCE AND COMMERCIAL,PCS,BA0000273248,19.80,
BIS,The Insolvency Service,18/03/2014,Travel and Subsistence,PEOPLE & CAPABILITY                                                                                 ,PCS,BA0000273248,572.20,
BIS,The Insolvency Service,18/03/2014,Travel and Subsistence,"PLANNING, PERFORMANCE & PROJECTS                                                                    ",PCS,BA0000273248,51.60,
BIS,The Insolvency Service,07/03/2014,Accommodation,ESTATES,PHS GROUP PLC (HYGIENE),BA0000272861,"-1,126.76",542951438
BIS,The Insolvency Service,07/03/2014,Accommodation,ESTATES,PHS GROUP PLC (HYGIENE),BA0000272864,"1,274.07",542951438
BIS,The Insolvency Service,01/03/2014,Travel and Subsistence,INVESTIGATION & ENFORCEMENT SERVICES                                                                ,PLAZA RIVERBANK                                             ,BA0000273613,326.90,
BIS,The Insolvency Service,01/03/2014,Computer and IT Systems,BUSINESS SERVICES DIRECTORATE                                                                       ,PLUSNET PLC,BA0000273613,34.19,
BIS,The Insolvency Service,01/03/2014,Travel and Subsistence,OFFICIAL RECEIVER SERVICES                                                                          ,POOLE CAR PARK                                              ,BA0000273613,5.50,
BIS,The Insolvency Service,01/03/2014,Travel and Subsistence,OFFICIAL RECEIVER SERVICES                                                                          ,POOLE CAR PARK                                              ,BA0000273613,7.00,
BIS,The Insolvency Service,01/03/2014,Travel and Subsistence,OFFICIAL RECEIVER SERVICES                                                                          ,POOLE CAR PARK                                              ,BA0000273613,3.30,
BIS,The Insolvency Service,01/03/2014,Accommodation,FINANCE AND COMMERCIAL                                                                              ,POST AND PACKING LTD                                        ,BA0000273613,43.14,
BIS,The Insolvency Service,01/03/2014,Office Supplies and Services,INFORMATION TECHNOLOGY                                                                              ,POST AND PACKING LTD                                        ,BA0000273613,55.14,
BIS,The Insolvency Service,01/03/2014,Postage,OFFICIAL RECEIVER SERVICES                                                                          ,POST OFFICE LTD,BA0000273613,13.80,
BIS,The Insolvency Service,01/03/2014,Accommodation,FINANCE AND COMMERCIAL                                                                              ,POSTURITE (UK) LTD.,BA0000273613,78.30,
BIS,The Insolvency Service,01/03/2014,Accommodation,FINANCE AND COMMERCIAL                                                                              ,POSTURITE (UK) LTD.,BA0000273613,661.98,
BIS,The Insolvency Service,01/03/2014,Accommodation,FINANCE AND COMMERCIAL                                                                              ,POSTURITE (UK) LTD.,BA0000273613,661.98,
BIS,The Insolvency Service,01/03/2014,Employee Related Costs,PEOPLE & CAPABILITY                                                                                 ,POSTURITE (UK) LTD.,BA0000273613,37.50,
BIS,The Insolvency Service,20/03/2014,Accommodation,ESTATES,PPH COMMERCIAL,BA0000273350,"3,652.63",894414007
BIS,The Insolvency Service,20/03/2014,Accommodation,ESTATES,PPH COMMERCIAL,BA0000273351,"5,904.45",894414007
BIS,The Insolvency Service,06/03/2014,Accounting and Banking,FINANCE AND COMMERCIAL,PPS,BA0000272753,901.97,
BIS,The Insolvency Service,06/03/2014,Accounting and Banking,FINANCE AND COMMERCIAL,PPS,BA0000272753,"2,526.56",
BIS,The Insolvency Service,11/03/2014,Investigation and Enforcement Costs,CUSTOMER AND COMMUNICATIONS                                                                         ,PRECISE MEDIA MONITORING LTD AKA ENERGY DATA SERVICES LTD,BA0000272891,933.84,849092202
BIS,The Insolvency Service,20/03/2014,Computer and IT Systems,INFORMATION TECHNOLOGY                                                                              ,PROBRAND LIMITED,BA0000273378,636.00,850401565
BIS,The Insolvency Service,31/03/2014,Computer and IT Systems,INFORMATION TECHNOLOGY                                                                              ,PROBRAND LIMITED,BA0000273855,335.62,850401565
BIS,The Insolvency Service,13/03/2014,Training Costs,PEOPLE & CAPABILITY                                                                                 ,QA LIMITED,BA0000273030,"6,030.00",
BIS,The Insolvency Service,13/03/2014,Training Costs,PEOPLE & CAPABILITY                                                                                 ,QA LIMITED,BA0000273032,"3,149.00",
BIS,The Insolvency Service,28/03/2014,Training Costs,PEOPLE & CAPABILITY                                                                                 ,QA LIMITED,BA0000273785,105.60,
BIS,The Insolvency Service,28/03/2014,Training Costs,PEOPLE & CAPABILITY                                                                                 ,QA LIMITED,BA0000273791,-105.60,
BIS,The Insolvency Service,14/03/2014,Investigation and Enforcement Costs,CUSTOMER AND COMMUNICATIONS                                                                         ,QUADRANGLE RESEARCH GROUP LIMITED                           ,BA0000273151,"53,724.00",853217042
BIS,The Insolvency Service,01/03/2014,Training Costs,FINANCE AND COMMERCIAL                                                                              ,QUIA,BA0000273613,119.79,
BIS,The Insolvency Service,01/03/2014,Training Costs,FINANCE AND COMMERCIAL                                                                              ,QUIA,BA0000273613,3.29,
BIS,The Insolvency Service,27/03/2014,Investigation and Enforcement Costs,INVESTIGATION & ENFORCEMENT SERVICES                                                                ,R K MEDICAL PRACTICE                                        ,BA0000273551,30.00,
BIS,The Insolvency Service,31/03/2014,Computer and IT Systems,INFORMATION TECHNOLOGY                                                                              ,R-COM CONSULTING LTD                                        ,BA0000273837,"59,201.11",733176244
BIS,The Insolvency Service,13/03/2014,Computer and IT Systems,INFORMATION TECHNOLOGY                                                                              ,RE THINK RECRUITMENT SOLUTIONS LTD,BA0000273070,"10,438.30",905139440
BIS,The Insolvency Service,24/03/2014,Accommodation,ESTATES,RENTOKIL PEST CONTROL,BA0000273484,192.76,209918933
BIS,The Insolvency Service,01/03/2014,Insolvency Case Related Costs,OFFICIAL RECEIVER SERVICES                                                                          ,ROLLS BUILDING,BA0000273613,70.00,
BIS,The Insolvency Service,01/03/2014,Investigation and Enforcement Costs,OFFICIAL RECEIVER SERVICES                                                                          ,ROLLS BUILDING,BA0000273613,465.00,
BIS,The Insolvency Service,06/03/2014,Accommodation,ESTATES,ROWLAND JONES CHARTERED SURVEYORS,BA0000272764,8.63,933478990
BIS,The Insolvency Service,06/03/2014,Accommodation,ESTATES,ROWLAND JONES CHARTERED SURVEYORS,BA0000272764,363.69,933478990
BIS,The Insolvency Service,06/03/2014,Accommodation,ESTATES,ROWLAND JONES CHARTERED SURVEYORS,BA0000272764,879.96,933478990
BIS,The Insolvency Service,06/03/2014,Accommodation,ESTATES,ROWLAND JONES CHARTERED SURVEYORS,BA0000272765,8.64,933478990
BIS,The Insolvency Service,06/03/2014,Accommodation,ESTATES,ROWLAND JONES CHARTERED SURVEYORS,BA0000272765,363.69,933478990
BIS,The Insolvency Service,06/03/2014,Accommodation,ESTATES,ROWLAND JONES CHARTERED SURVEYORS,BA0000272765,880.65,933478990
BIS,The Insolvency Service,06/03/2014,Accommodation,ESTATES,ROWLAND JONES CHARTERED SURVEYORS,BA0000272766,11.01,933478990
BIS,The Insolvency Service,06/03/2014,Accommodation,ESTATES,ROWLAND JONES CHARTERED SURVEYORS,BA0000272766,464.16,933478990
BIS,The Insolvency Service,06/03/2014,Accommodation,ESTATES,ROWLAND JONES CHARTERED SURVEYORS,BA0000272766,"1,123.16",933478990
BIS,The Insolvency Service,31/03/2014,Insolvency Case Related Costs,OFFICIAL RECEIVER SERVICES                                                                          ,ROYAL MAIL,BA0000273866,"14,280.00",
